Workbook

Sheet DESAXEMENTS & PENTES
N2: Ligne 930 000 - VOIE .. PK223+392_PK224+291 | AM2: =AM5/$AY$5 ->  | AY2: =SUM(AM2:AX2) -> 
B3: Vitesse de ligne (km/h) : | U3: Convention: Dans le croissant des Pk, + ripage a droite + desaxement à droite
B4: Limite de réglage vertical (cm) : | J4: Régévoie: | O4: =#REF! ->  | P4: =#REF! ->  | AL4: PS | AM4: VC-T | AN4: VC-C | AO4: IST-T | AP4: IST-C | AQ4: AST-T | AR4: AST-C | AS4: IET-T | AT4: IET-C | AU4: AET-T | AV4: AET-C | AW4: AIG-T | AX4: AIG-C
B5: Limite de réglage horizontal (cm) : | J5: Profil en long: | O5: =#REF! ->  | P5: =#REF! ->  | AL5: =COUNTIF($AD$9:$AD$283,AL4) -> 0 | AM5: =COUNTIF($AD$9:$AD$283,AM4) -> 0 | AN5: =COUNTIF($AD$9:$AD$283,AN4) -> 0 | AO5: 0 | AP5: 0 | AQ5: 0 | AR5: 0 | AS5: 0 | AT5: 0 | AU5: 0 | AV5: 0 | AW5: =COUNTIF($AD$9:$AD$283,AW4) -> 0 | AX5: =COUNTIF($AD$9:$AD$283,AX4) -> 0 | AY5: =SUM(AM5:AX5) -> 0
D6: Relevage provisoire (mm): | J6: Etudes de courbe: | O6: =#REF! ->  | P6: =#REF! -> 
A7: Profil voie actuel | G7: RIPAGE | J7: DEVERS | O7: REGLAGE DESAXEMENT | Q7: RELEVAGE | U7: PENTES / RAMPES | Z7: REGLAGE ARMEMENT | AE7: Données ouvrage
A8: Support | B8: HFC (m) (Relevé) | C8: Implantation (m) CM & Relevé | D8: Portée (m) | E8: Cumul portées (m) | F8: Désax. (mm) (CM) | G8: Ripage (mm) | H8: Désax après ripage (mm) | I8: Implantation après ripage (m) | J8: Dévers actuel (mm) | K8: Dés. Dev (en mm) | L8: Dévers futur (mm) | M8: Dés. Dev (en mm) | N8: Désaxement liée à la modification de devers (mm) | O8: Désaxement après modification voie (mm) | P8: Désax souhaité (mm) | Q8: Relevage définitif (mm) | R8: Relevage provisoire (mm) | S8: HFC après relevage (m) | T8: HFC mini (m) | U8: Pente avant réglage (mm/m) | V8: Variation pente avant réglage (mm/m) | W8: Réglage HFC après relevage (m) | X8: Pente après réglage (mm/m) | Y8: Variation pente après réglage (mm/m) | Z8: VERTICAL (cm) | AA8: LONGITUDINAL (cm) | AB8: TYPE INTERVENTIONS | AC8: OBSERVATIONS PARTICULIERES | AD8: EQUIPEMENTS | AE8: TYPE D'OA | AF8: H libre (m) récolée | AG8: H libre (m) avec relevage | AH8: Distance isolement 0.27 m mini | AI8: E (m) | AJ8: Relevement ou abaissement (m) | AK8: CHANTIER
A9: 223-37A | B9: 5.69 | D9: 35.85 | E9: =IF($A9<>"",D9,"") -> 35.85 | F9: 240 | G9: 0 | H9: =IF($A9<>"",F9-G9,"") -> 240 | I9: =IF(C9<>"",C9-(G9/1000),"") ->  | J9: 0 | K9: =IF($A9<>"",((J9)/1510)*B9*1000,"") -> 0 | L9: 0 | M9: =IF($A9<>"",((L9)/1510)*W9*1000,"") -> 0 | N9: =IF($A9<>"",IF(MAX(K9,M9)=M9,MAX(K9,M9)-MIN(K9,M9),MIN(K9,M9)-MAX(K9,M9)),"") -> 0 | O9: =IF($A9<>"",H9-N9,"") -> 240 | P9: 240 | Q9: 0 | S9: =IF($A9<>"",IF(R9=0,B9-Q9/1000,B9-R9/1000),"") -> 5.69 | T9: =VLOOKUP(D9,#REF!,3,TRUE) ->  | U9: =IF($A9<>"",((S10-S9)*1000)/D9,"") -> 0.2789400279 | W9: =S9 -> 5.69 | X9: =IF($A9<>"",((W10-W9)*1000)/D9,"") -> 0.2789400279 | Z9: =IF($A9<>"",(W9-S9)*100,"") -> 0 | AA9: =IF($A9<>"",(P9-O9)/10,"") -> 0 | AB9: =IF($A9<>"",IF(#REF!<>"",#REF!,IF(#REF!<>"",#REF!,IF(#REF!<>"",#REF!))),"") ->  | AH9: =AG9-W9-AI9 -> -5.69
A10: 223-41A | B10: 5.7 | D10: 27.11 | E10: =IF($A10<>"",E9+D10,"") -> 62.96 | F10: -110 | G10: 0 | H10: =IF($A10<>"",F10-G10,"") -> -110 | I10: =IF(C10<>"",C10-(G10/1000),"") ->  | J10: -8 | K10: =IF($A10<>"",((J10)/1510)*B10*1000,"") -> -30.1986755 | L10: 0 | M10: =IF($A10<>"",((L10)/1510)*W10*1000,"") -> 0 | N10: =IF($A10<>"",IF(MAX(K10,M10)=M10,MAX(K10,M10)-MIN(K10,M10),MIN(K10,M10)-MAX(K10,M10)),"") -> 30.1986755 | O10: =IF($A10<>"",H10-N10,"") -> -140.1986755 | P10: -110 | Q10: 0 | S10: =IF($A10<>"",IF(R10=0,B10-Q10/1000,B10-R10/1000),"") -> 5.7 | T10: =VLOOKUP(D10,#REF!,3,TRUE) ->  | U10: =IF(AND($A10<>"",S11<>""),((S11-S10)*1000)/D10,"") -> -0.7377351531 | V10: =IF($A10<>"",ABS(U9-U10),"") -> 1.016675181 | W10: =S10 -> 5.7 | X10: =IF($A10<>"",((W11-W10)*1000)/D10,"") -> -0.7377351531 | Y10: =IF($A9<>"",ABS(X9-X10),"") -> 1.016675181 | Z10: =IF($A10<>"",(W10-S10)*100,"") -> 0 | AA10: =IF($A10<>"",(P10-O10)/10,"") -> 3.01986755 | AB10: =IF($A10<>"",IF(#REF!<>"",#REF!,IF(#REF!<>"",#REF!,IF(#REF!<>"",#REF!))),"") ->  | AH10: -5.7
A11: 223-43A | B11: 5.68 | D11: 40.08 | E11: =IF($A11<>"",E10+D11,"") -> 103.04 | F11: 80 | G11: 0 | H11: 80 | J11: 0 | K11: 0 | L11: 0 | M11: 0 | N11: 0 | O11: 80 | P11: 80 | Q11: 0 | S11: 5.68 | T11: =VLOOKUP(D11,#REF!,3,TRUE) ->  | U11: =IF(AND($A11<>"",S12<>""),((S12-S11)*1000)/D11,"") -> 0.8088822355 | V11: =IF($A11<>"",ABS(U10-U11),"") -> 1.546617389 | W11: 5.68 | X11: 0.8088822355 | Y11: =IF($A10<>"",ABS(X10-X11),"") -> 1.546617389 | Z11: 0 | AA11: 0 | AB11: =IF($A11<>"",IF(#REF!<>"",#REF!,IF(#REF!<>"",#REF!,IF(#REF!<>"",#REF!))),"") ->  | AH11: -5.68
A12: 223-45A | B12: 5.77 | D12: 49.63 | E12: 152.67 | F12: 250 | G12: -21 | H12: 271 | J12: -22 | K12: -84.06622517 | L12: 0 | M12: 0 | N12: 84.06622517 | O12: 186.9337748 | P12: 250 | Q12: 57.58 | S12: 5.71242 | T12: =VLOOKUP(D12,#REF!,3,TRUE) ->  | U12: 1.764658473 | V12: =IF($A12<>"",ABS(U11-U12),"") -> 0.9557762372 | W12: 5.71242 | X12: 1.764658473 | Y12: 0.9557762372 | Z12: 0 | AA12: 6.306622517 | AB12: =IF($A12<>"",IF(#REF!<>"",#REF!,IF(#REF!<>"",#REF!,IF(#REF!<>"",#REF!))),"") ->  | AH12: -5.71242
A13: 223-47M | B13: 5.82 | D13: 38.48 | E13: 191.15 | F13: -260 | G13: 3 | H13: -263 | J13: 3 | K13: 11.56291391 | L13: 0 | M13: 0 | N13: -11.56291391 | O13: -251.4370861 | P13: -260 | Q13: 20 | S13: 5.8 | T13: =VLOOKUP(D13,#REF!,3,TRUE) ->  | U13: 1.819126819 | V13: 0.05446834643 | W13: 5.8 | X13: 1.819126819 | Y13: 0.05446834643 | Z13: 0 | AA13: -0.8562913907 | AB13: =IF($A13<>"",IF(#REF!<>"",#REF!,IF(#REF!<>"",#REF!,IF(#REF!<>"",#REF!))),"") ->  | AH13: -5.8
A14: 223-49M | B14: 5.88 | D14: 34.53 | E14: 225.68 | F14: -250 | G14: -20 | H14: -230 | J14: 6 | K14: 23.36423841 | L14: 0 | M14: 0 | N14: -23.36423841 | O14: -206.6357616 | P14: -250 | Q14: 10 | S14: 5.87 | T14: =VLOOKUP(D14,#REF!,3,TRUE) ->  | U14: 0 | V14: 1.819126819 | W14: 5.87 | X14: 0 | Y14: 1.819126819 | Z14: 0 | AA14: -4.336423841 | AB14: =IF($A14<>"",IF(#REF!<>"",#REF!,IF(#REF!<>"",#REF!,IF(#REF!<>"",#REF!))),"") ->  | AH14: -5.87
A15: 223-51M | B15: 5.88 | D15: 56.2 | E15: 281.88 | F15: -240 | G15: -1 | H15: -239 | J15: 2 | K15: 7.78807947 | L15: 0 | M15: 0 | N15: -7.78807947 | O15: -231.2119205 | P15: -240 | Q15: 10 | S15: 5.87 | T15: =VLOOKUP(D15,#REF!,3,TRUE) ->  | U15: -0.7117437722 | V15: 0.7117437722 | W15: 5.87 | X15: -0.7117437722 | Y15: 0.7117437722 | Z15: 0 | AA15: -0.878807947 | AB15: =IF($A15<>"",IF(#REF!<>"",#REF!,IF(#REF!<>"",#REF!,IF(#REF!<>"",#REF!))),"") ->  | AH15: -5.87
A16: 224-01M | B16: 5.82 | D16: 46.75 | E16: 328.63 | F16: 210 | G16: -20 | H16: 230 | J16: 1 | K16: 3.854304636 | L16: 0 | M16: 0 | N16: -3.854304636 | O16: 233.8543046 | P16: 210 | Q16: -10 | S16: 5.83 | T16: =VLOOKUP(D16,#REF!,3,TRUE) ->  | U16: -0.4278074866 | V16: 0.2839362856 | W16: 5.83 | X16: -0.4278074866 | Y16: 0.2839362856 | Z16: 0 | AA16: -2.385430464 | AB16: =IF($A16<>"",IF(#REF!<>"",#REF!,IF(#REF!<>"",#REF!,IF(#REF!<>"",#REF!))),"") ->  | AH16: -5.83
A17: 224-03M | B17: 5.81 | D17: 46.75 | E17: 375.38 | F17: -210 | G17: 3 | H17: -213 | J17: 2 | K17: 7.695364238 | L17: 0 | M17: 0 | N17: -7.695364238 | O17: -205.3046358 | P17: -210 | Q17: 0 | S17: 5.81 | T17: =VLOOKUP(D17,#REF!,3,TRUE) ->  | U17: -1.28342246 | V17: 0.8556149733 | W17: 5.81 | X17: -1.28342246 | Y17: 0.8556149733 | Z17: 0 | AA17: -0.4695364238 | AB17: =IF($A17<>"",IF(#REF!<>"",#REF!,IF(#REF!<>"",#REF!,IF(#REF!<>"",#REF!))),"") ->  | AH17: -5.81
A18: 224-05M | B18: 5.77 | D18: 46.75 | E18: 422.13 | F18: 200 | G18: -1 | H18: 201 | J18: 5 | K18: 19.10596026 | L18: 0 | M18: 0 | N18: -19.10596026 | O18: 220.1059603 | P18: 200 | Q18: 20 | S18: 5.75 | T18: =VLOOKUP(D18,#REF!,3,TRUE) ->  | U18: -0.6417112299 | V18: 0.6417112299 | W18: 5.75 | X18: -0.6417112299 | Y18: 0.6417112299 | Z18: 0 | AA18: -2.010596026 | AB18: =IF($A18<>"",IF(#REF!<>"",#REF!,IF(#REF!<>"",#REF!,IF(#REF!<>"",#REF!))),"") ->  | AG18: =AF18-(Q18*0.001) -> -0.02 | AH18: -5.77
A19: 224-07M | B19: 5.73 | D19: 40.06 | E19: 462.19 | F19: -10 | G19: -1 | H19: -9 | J19: 3 | K19: 11.38410596 | L19: 0 | M19: 0 | N19: -11.38410596 | O19: 2.38410596 | P19: -10 | Q19: 10 | S19: 5.72 | T19: =VLOOKUP(D19,#REF!,3,TRUE) ->  | U19: 1.657513729 | V19: 2.299224959 | W19: 5.72 | X19: 1.657513729 | Y19: 2.299224959 | Z19: 0 | AA19: -1.238410596 | AB19: =IF($A19<>"",IF(#REF!<>"",#REF!,IF(#REF!<>"",#REF!,IF(#REF!<>"",#REF!))),"") ->  | AG19: =AF19-(Q19*0.001) -> -0.01 | AH19: -5.73
A20: 224-09M | B20: 5.81 | D20: 29 | E20: 491.19 | F20: -230 | G20: 26 | H20: -256 | J20: 9 | K20: 34.62913907 | L20: 0 | M20: 0 | N20: -34.62913907 | O20: -221.3708609 | P20: -230 | Q20: 23.6 | S20: 5.7864 | T20: =VLOOKUP(D20,#REF!,3,TRUE) ->  | U20: -8.186206897 | V20: 9.843720626 | W20: 5.7864 | X20: -8.186206897 | Y20: 9.843720626 | Z20: 0 | AA20: -0.8629139073 | AB20: =IF($A20<>"",IF(#REF!<>"",#REF!,IF(#REF!<>"",#REF!,IF(#REF!<>"",#REF!))),"") ->  | AH20: -5.7864
A21: 224-11A | B21: 5.59 | D21: 28.2 | E21: 519.39 | F21: -230 | G21: -23 | H21: -207 | J21: 7 | K21: 25.91390728 | L21: 0 | M21: 0 | N21: -25.91390728 | O21: -181.0860927 | P21: -230 | Q21: 41 | S21: 5.549 | T21: =VLOOKUP(D21,#REF!,3,TRUE) ->  | U21: -6.205673759 | V21: 1.980533138 | W21: 5.549 | X21: -6.205673759 | Y21: 1.980533138 | Z21: 0 | AA21: -4.891390728 | AB21: =IF($A21<>"",IF(#REF!<>"",#REF!,IF(#REF!<>"",#REF!,IF(#REF!<>"",#REF!))),"") ->  | AH21: -5.549
A22: 224-13A | B22: 5.42 | D22: 21.6 | E22: 540.99 | F22: -250 | G22: -55 | H22: -195 | J22: -6 | K22: -21.53642384 | L22: 0 | M22: 0 | N22: 21.53642384 | O22: -216.5364238 | P22: -250 | Q22: 46 | S22: 5.374 | T22: =VLOOKUP(D22,#REF!,3,TRUE) ->  | U22: -5.947222222 | V22: 0.2584515366 | W22: 5.374 | X22: -5.947222222 | Y22: 0.2584515366 | Z22: 0 | AA22: -3.346357616 | AB22: =IF($A22<>"",IF(#REF!<>"",#REF!,IF(#REF!<>"",#REF!,IF(#REF!<>"",#REF!))),"") ->  | AH22: -5.374
A23: 224-15A | B23: 5.26 | D23: 34.7 | E23: 575.69 | F23: 160 | G23: -37 | H23: 197 | J23: -4 | K23: -13.93377483 | L23: 0 | M23: 0 | N23: 13.93377483 | O23: 183.0662252 | P23: 160 | Q23: 14.46 | S23: 5.24554 | T23: =VLOOKUP(D23,#REF!,3,TRUE) ->  | U23: 0.9930835735 | V23: 6.940305796 | W23: 5.24554 | X23: 0.9930835735 | Y23: 6.940305796 | Z23: 0 | AA23: -2.306622517 | AB23: =IF($A23<>"",IF(#REF!<>"",#REF!,IF(#REF!<>"",#REF!,IF(#REF!<>"",#REF!))),"") ->  | AH23: -5.24554
A24: 224-17A | B24: 5.28 | D24: 32.5 | E24: 608.19 | F24: -40 | G24: 0 | H24: -40 | J24: -4 | K24: -13.98675497 | L24: 0 | M24: 0 | N24: 13.98675497 | O24: -53.98675497 | P24: -40 | Q24: 0 | S24: 5.28 | T24: =VLOOKUP(D24,#REF!,3,TRUE) ->  | U24: -1.538461538 | V24: 2.531545112 | W24: 5.28 | X24: -1.538461538 | Y24: 2.531545112 | Z24: 0 | AA24: 1.398675497 | AB24: =IF($A24<>"",IF(#REF!<>"",#REF!,IF(#REF!<>"",#REF!,IF(#REF!<>"",#REF!))),"") ->  | AH24: -5.28
A25: 224-17A | B25: 5.23 | D25: 32.5 | E25: 640.69 | F25: -200 | G25: 0 | H25: -200 | J25: -4 | K25: -13.85430464 | L25: 0 | M25: 0 | N25: 13.85430464 | O25: -213.8543046 | P25: -200 | Q25: 0 | S25: 5.23 | T25: =VLOOKUP(D25,#REF!,3,TRUE) ->  | U25: 10.15384615 | V25: 11.69230769 | W25: 5.23 | X25: 10.15384615 | Y25: 11.69230769 | Z25: 0 | AA25: 1.385430464 | AB25: =IF($A25<>"",IF(#REF!<>"",#REF!,IF(#REF!<>"",#REF!,IF(#REF!<>"",#REF!))),"") ->  | AH25: -5.23
A26: 224-19A | B26: 5.56 | D26: 19.5 | E26: 660.19 | F26: -10 | G26: 0 | H26: -10 | J26: 0 | K26: 0 | L26: 0 | M26: 0 | N26: 0 | O26: -10 | P26: -10 | Q26: 0 | S26: 5.56 | T26: =VLOOKUP(D26,#REF!,3,TRUE) ->  | U26: 7.179487179 | V26: 2.974358974 | W26: 5.56 | X26: 7.179487179 | Y26: 2.974358974 | Z26: 0 | AA26: 0 | AB26: =IF($A26<>"",IF(#REF!<>"",#REF!,IF(#REF!<>"",#REF!,IF(#REF!<>"",#REF!))),"") ->  | AH26: -5.56
A27: 224-21A | B27: 5.7 | D27: 34.75 | E27: 694.94 | F27: 130 | G27: 0 | H27: 130 | J27: 1 | K27: 3.774834437 | L27: 0 | M27: 0 | N27: -3.774834437 | O27: 133.7748344 | P27: 0 | Q27: 0 | S27: 5.7 | T27: =VLOOKUP(D27,#REF!,3,TRUE) ->  | U27: -0.8633093525 | V27: 8.042796532 | W27: 5.7 | X27: -0.8633093525 | Y27: 8.042796532 | Z27: 0 | AA27: -13.37748344 | AB27: =IF($A27<>"",IF(#REF!<>"",#REF!,IF(#REF!<>"",#REF!,IF(#REF!<>"",#REF!))),"") ->  | AH27: -5.7
A28: 224-21A | B28: 5.67 | D28: 34.75 | E28: 729.69 | F28: 370 | G28: 0 | H28: 370 | J28: 1 | K28: 3.754966887 | L28: 0 | M28: 0 | N28: -3.754966887 | O28: 373.7549669 | P28: 240 | Q28: 0 | S28: 5.67 | T28: =VLOOKUP(D28,#REF!,3,TRUE) ->  | U28: 2.877697842 | V28: 3.741007194 | W28: 5.67 | X28: 2.877697842 | Y28: 3.741007194 | Z28: 0 | AA28: -13.37549669 | AB28: =IF($A28<>"",IF(#REF!<>"",#REF!,IF(#REF!<>"",#REF!,IF(#REF!<>"",#REF!))),"") ->  | AH28: -5.67
A29: 224-23A | B29: 5.77 | D29: 23.94 | E29: 753.63 | F29: 370 | G29: 0 | H29: 370 | J29: 3 | K29: 11.46357616 | L29: 0 | M29: 0 | N29: -11.46357616 | O29: 381.4635762 | P29: 370 | Q29: 0 | S29: 5.77 | T29: =VLOOKUP(D29,#REF!,3,TRUE) ->  | W29: 5.77 | Z29: 0 | AA29: -1.146357616 | AB29: =IF($A29<>"",IF(#REF!<>"",#REF!,IF(#REF!<>"",#REF!,IF(#REF!<>"",#REF!))),"") ->  | AH29: -5.77
T30: =VLOOKUP(D30,#REF!,3,TRUE) ->  | AB30: =IF($A30<>"",IF(#REF!<>"",#REF!,IF(#REF!<>"",#REF!,IF(#REF!<>"",#REF!))),"") -> 
T31: =VLOOKUP(D31,#REF!,3,TRUE) ->  | AB31: =IF($A31<>"",IF(#REF!<>"",#REF!,IF(#REF!<>"",#REF!,IF(#REF!<>"",#REF!))),"") -> 
T32: =VLOOKUP(D32,#REF!,3,TRUE) ->  | AB32: =IF($A32<>"",IF(#REF!<>"",#REF!,IF(#REF!<>"",#REF!,IF(#REF!<>"",#REF!))),"") -> 
T33: =VLOOKUP(D33,#REF!,3,TRUE) ->  | AB33: =IF($A33<>"",IF(#REF!<>"",#REF!,IF(#REF!<>"",#REF!,IF(#REF!<>"",#REF!))),"") -> 
T34: =VLOOKUP(D34,#REF!,3,TRUE) ->  | AB34: =IF($A34<>"",IF(#REF!<>"",#REF!,IF(#REF!<>"",#REF!,IF(#REF!<>"",#REF!))),"") -> 
T35: =VLOOKUP(D35,#REF!,3,TRUE) ->  | AB35: =IF($A35<>"",IF(#REF!<>"",#REF!,IF(#REF!<>"",#REF!,IF(#REF!<>"",#REF!))),"") -> 
T36: =VLOOKUP(D36,#REF!,3,TRUE) ->  | AB36: =IF($A36<>"",IF(#REF!<>"",#REF!,IF(#REF!<>"",#REF!,IF(#REF!<>"",#REF!))),"") -> 
T37: =VLOOKUP(D37,#REF!,3,TRUE) ->  | AB37: =IF($A37<>"",IF(#REF!<>"",#REF!,IF(#REF!<>"",#REF!,IF(#REF!<>"",#REF!))),"") -> 
T38: =VLOOKUP(D38,#REF!,3,TRUE) ->  | AB38: =IF($A38<>"",IF(#REF!<>"",#REF!,IF(#REF!<>"",#REF!,IF(#REF!<>"",#REF!))),"") -> 
T39: =VLOOKUP(D39,#REF!,3,TRUE) ->  | AB39: =IF($A39<>"",IF(#REF!<>"",#REF!,IF(#REF!<>"",#REF!,IF(#REF!<>"",#REF!))),"") -> 
T40: =VLOOKUP(D40,#REF!,3,TRUE) ->  | AB40: =IF($A40<>"",IF(#REF!<>"",#REF!,IF(#REF!<>"",#REF!,IF(#REF!<>"",#REF!))),"") -> 
T41: =VLOOKUP(D41,#REF!,3,TRUE) ->  | AB41: =IF($A41<>"",IF(#REF!<>"",#REF!,IF(#REF!<>"",#REF!,IF(#REF!<>"",#REF!))),"") -> 
T42: =VLOOKUP(D42,#REF!,3,TRUE) ->  | AB42: =IF($A42<>"",IF(#REF!<>"",#REF!,IF(#REF!<>"",#REF!,IF(#REF!<>"",#REF!))),"") -> 
T43: =VLOOKUP(D43,#REF!,3,TRUE) ->  | AB43: =IF($A43<>"",IF(#REF!<>"",#REF!,IF(#REF!<>"",#REF!,IF(#REF!<>"",#REF!))),"") -> 
T44: =VLOOKUP(D44,#REF!,3,TRUE) ->  | AB44: =IF($A44<>"",IF(#REF!<>"",#REF!,IF(#REF!<>"",#REF!,IF(#REF!<>"",#REF!))),"") -> 
T45: =VLOOKUP(D45,#REF!,3,TRUE) ->  | AB45: =IF($A45<>"",IF(#REF!<>"",#REF!,IF(#REF!<>"",#REF!,IF(#REF!<>"",#REF!))),"") -> 
T46: =VLOOKUP(D46,#REF!,3,TRUE) ->  | AB46: =IF($A46<>"",IF(#REF!<>"",#REF!,IF(#REF!<>"",#REF!,IF(#REF!<>"",#REF!))),"") -> 
T47: =VLOOKUP(D47,#REF!,3,TRUE) ->  | AB47: =IF($A47<>"",IF(#REF!<>"",#REF!,IF(#REF!<>"",#REF!,IF(#REF!<>"",#REF!))),"") -> 
T48: =VLOOKUP(D48,#REF!,3,TRUE) ->  | AB48: =IF($A48<>"",IF(#REF!<>"",#REF!,IF(#REF!<>"",#REF!,IF(#REF!<>"",#REF!))),"") -> 
T49: =VLOOKUP(D49,#REF!,3,TRUE) ->  | AB49: =IF($A49<>"",IF(#REF!<>"",#REF!,IF(#REF!<>"",#REF!,IF(#REF!<>"",#REF!))),"") -> 
T50: =VLOOKUP(D50,#REF!,3,TRUE) ->  | AB50: =IF($A50<>"",IF(#REF!<>"",#REF!,IF(#REF!<>"",#REF!,IF(#REF!<>"",#REF!))),"") -> 
T51: =VLOOKUP(D51,#REF!,3,TRUE) ->  | AB51: =IF($A51<>"",IF(#REF!<>"",#REF!,IF(#REF!<>"",#REF!,IF(#REF!<>"",#REF!))),"") -> 
T52: =VLOOKUP(D52,#REF!,3,TRUE) ->  | AB52: =IF($A52<>"",IF(#REF!<>"",#REF!,IF(#REF!<>"",#REF!,IF(#REF!<>"",#REF!))),"") -> 
T53: =VLOOKUP(D53,#REF!,3,TRUE) ->  | AB53: =IF($A53<>"",IF(#REF!<>"",#REF!,IF(#REF!<>"",#REF!,IF(#REF!<>"",#REF!))),"") -> 
T54: =VLOOKUP(D54,#REF!,3,TRUE) ->  | AB54: =IF($A54<>"",IF(#REF!<>"",#REF!,IF(#REF!<>"",#REF!,IF(#REF!<>"",#REF!))),"") -> 
T55: =VLOOKUP(D55,#REF!,3,TRUE) ->  | AB55: =IF($A55<>"",IF(#REF!<>"",#REF!,IF(#REF!<>"",#REF!,IF(#REF!<>"",#REF!))),"") -> 
T56: =VLOOKUP(D56,#REF!,3,TRUE) ->  | AB56: =IF($A56<>"",IF(#REF!<>"",#REF!,IF(#REF!<>"",#REF!,IF(#REF!<>"",#REF!))),"") -> 
T57: =VLOOKUP(D57,#REF!,3,TRUE) ->  | AB57: =IF($A57<>"",IF(#REF!<>"",#REF!,IF(#REF!<>"",#REF!,IF(#REF!<>"",#REF!))),"") -> 
T58: =VLOOKUP(D58,#REF!,3,TRUE) ->  | AB58: =IF($A58<>"",IF(#REF!<>"",#REF!,IF(#REF!<>"",#REF!,IF(#REF!<>"",#REF!))),"") -> 
T59: =VLOOKUP(D59,#REF!,3,TRUE) ->  | AB59: =IF($A59<>"",IF(#REF!<>"",#REF!,IF(#REF!<>"",#REF!,IF(#REF!<>"",#REF!))),"") -> 
T60: =VLOOKUP(D60,#REF!,3,TRUE) ->  | AB60: =IF($A60<>"",IF(#REF!<>"",#REF!,IF(#REF!<>"",#REF!,IF(#REF!<>"",#REF!))),"") -> 
T61: =VLOOKUP(D61,#REF!,3,TRUE) ->  | AB61: =IF($A61<>"",IF(#REF!<>"",#REF!,IF(#REF!<>"",#REF!,IF(#REF!<>"",#REF!))),"") -> 
T62: =VLOOKUP(D62,#REF!,3,TRUE) ->  | AB62: =IF($A62<>"",IF(#REF!<>"",#REF!,IF(#REF!<>"",#REF!,IF(#REF!<>"",#REF!))),"") -> 
T63: =VLOOKUP(D63,#REF!,3,TRUE) ->  | AB63: =IF($A63<>"",IF(#REF!<>"",#REF!,IF(#REF!<>"",#REF!,IF(#REF!<>"",#REF!))),"") -> 
T64: =VLOOKUP(D64,#REF!,3,TRUE) ->  | AB64: =IF($A64<>"",IF(#REF!<>"",#REF!,IF(#REF!<>"",#REF!,IF(#REF!<>"",#REF!))),"") -> 
T65: =VLOOKUP(D65,#REF!,3,TRUE) ->  | AB65: =IF($A65<>"",IF(#REF!<>"",#REF!,IF(#REF!<>"",#REF!,IF(#REF!<>"",#REF!))),"") -> 
T66: =VLOOKUP(D66,#REF!,3,TRUE) ->  | AB66: =IF($A66<>"",IF(#REF!<>"",#REF!,IF(#REF!<>"",#REF!,IF(#REF!<>"",#REF!))),"") -> 
T67: =VLOOKUP(D67,#REF!,3,TRUE) ->  | AB67: =IF($A67<>"",IF(#REF!<>"",#REF!,IF(#REF!<>"",#REF!,IF(#REF!<>"",#REF!))),"") -> 
T68: =VLOOKUP(D68,#REF!,3,TRUE) ->  | AB68: =IF($A68<>"",IF(#REF!<>"",#REF!,IF(#REF!<>"",#REF!,IF(#REF!<>"",#REF!))),"") -> 
T69: =VLOOKUP(D69,#REF!,3,TRUE) ->  | AB69: =IF($A69<>"",IF(#REF!<>"",#REF!,IF(#REF!<>"",#REF!,IF(#REF!<>"",#REF!))),"") -> 
T70: =VLOOKUP(D70,#REF!,3,TRUE) ->  | AB70: =IF($A70<>"",IF(#REF!<>"",#REF!,IF(#REF!<>"",#REF!,IF(#REF!<>"",#REF!))),"") -> 
T71: =VLOOKUP(D71,#REF!,3,TRUE) ->  | AB71: =IF($A71<>"",IF(#REF!<>"",#REF!,IF(#REF!<>"",#REF!,IF(#REF!<>"",#REF!))),"") -> 
T72: =VLOOKUP(D72,#REF!,3,TRUE) ->  | AB72: =IF($A72<>"",IF(#REF!<>"",#REF!,IF(#REF!<>"",#REF!,IF(#REF!<>"",#REF!))),"") -> 
T73: =VLOOKUP(D73,#REF!,3,TRUE) ->  | AB73: =IF($A73<>"",IF(#REF!<>"",#REF!,IF(#REF!<>"",#REF!,IF(#REF!<>"",#REF!))),"") ->  | AH73: =AG73-W73-AI73 -> 
H74: =IF($A74<>"",F74-G74,"") ->  | I74: =IF(C74<>"",C74-(G74/1000),"") ->  | K74: =IF($A74<>"",((J74)/1510)*B74*1000,"") ->  | M74: =IF($A74<>"",((L74)/1510)*W74*1000,"") ->  | N74: =IF($A74<>"",IF(MAX(K74,M74)=M74,MAX(K74,M74)-MIN(K74,M74),MIN(K74,M74)-MAX(K74,M74)),"") ->  | O74: =IF($A74<>"",H74-N74,"") ->  | S74: =IF($A74<>"",IF(R74=0,B74-Q74/1000,B74-R74/1000),"") ->  | T74: =VLOOKUP(D74,#REF!,3,TRUE) ->  | W74: =S74 ->  | X74: =IF($A74<>"",((W75-W74)*1000)/D74,"") ->  | Z74: =IF($A74<>"",(W74-S74)*100,"") ->  | AA74: =IF($A74<>"",(P74-O74)/10,"") ->  | AB74: =IF($A74<>"",IF(#REF!<>"",#REF!,IF(#REF!<>"",#REF!,IF(#REF!<>"",#REF!))),"") -> 
E75: =IF($A75<>"",E74+D75,"") ->  | T75: =VLOOKUP(D75,#REF!,3,TRUE) ->  | U75: =IF(AND($A75<>"",S76<>""),((S76-S75)*1000)/D75,"") ->  | V75: =IF($A75<>"",ABS(U74-U75),"") ->  | Y75: =IF($A74<>"",ABS(X74-X75),"") ->  | AB75: =IF($A75<>"",IF(#REF!<>"",#REF!,IF(#REF!<>"",#REF!,IF(#REF!<>"",#REF!))),"") -> 
T76: =VLOOKUP(D76,#REF!,3,TRUE) ->  | AB76: =IF($A76<>"",IF(#REF!<>"",#REF!,IF(#REF!<>"",#REF!,IF(#REF!<>"",#REF!))),"") -> 
T77: =VLOOKUP(D77,#REF!,3,TRUE) ->  | AB77: =IF($A77<>"",IF(#REF!<>"",#REF!,IF(#REF!<>"",#REF!,IF(#REF!<>"",#REF!))),"") -> 
T78: =VLOOKUP(D78,#REF!,3,TRUE) ->  | AB78: =IF($A78<>"",IF(#REF!<>"",#REF!,IF(#REF!<>"",#REF!,IF(#REF!<>"",#REF!))),"") -> 
T79: =VLOOKUP(D79,#REF!,3,TRUE) ->  | AB79: =IF($A79<>"",IF(#REF!<>"",#REF!,IF(#REF!<>"",#REF!,IF(#REF!<>"",#REF!))),"") -> 
T80: =VLOOKUP(D80,#REF!,3,TRUE) ->  | AB80: =IF($A80<>"",IF(#REF!<>"",#REF!,IF(#REF!<>"",#REF!,IF(#REF!<>"",#REF!))),"") -> 
T81: =VLOOKUP(D81,#REF!,3,TRUE) ->  | AB81: =IF($A81<>"",IF(#REF!<>"",#REF!,IF(#REF!<>"",#REF!,IF(#REF!<>"",#REF!))),"") -> 
T82: =VLOOKUP(D82,#REF!,3,TRUE) ->  | AB82: =IF($A82<>"",IF(#REF!<>"",#REF!,IF(#REF!<>"",#REF!,IF(#REF!<>"",#REF!))),"") -> 
T83: =VLOOKUP(D83,#REF!,3,TRUE) ->  | AB83: =IF($A83<>"",IF(#REF!<>"",#REF!,IF(#REF!<>"",#REF!,IF(#REF!<>"",#REF!))),"") -> 
T84: =VLOOKUP(D84,#REF!,3,TRUE) ->  | AB84: =IF($A84<>"",IF(#REF!<>"",#REF!,IF(#REF!<>"",#REF!,IF(#REF!<>"",#REF!))),"") -> 
T85: =VLOOKUP(D85,#REF!,3,TRUE) ->  | AB85: =IF($A85<>"",IF(#REF!<>"",#REF!,IF(#REF!<>"",#REF!,IF(#REF!<>"",#REF!))),"") -> 
T86: =VLOOKUP(D86,#REF!,3,TRUE) ->  | AB86: =IF($A86<>"",IF(#REF!<>"",#REF!,IF(#REF!<>"",#REF!,IF(#REF!<>"",#REF!))),"") -> 
T87: =VLOOKUP(D87,#REF!,3,TRUE) ->  | AB87: =IF($A87<>"",IF(#REF!<>"",#REF!,IF(#REF!<>"",#REF!,IF(#REF!<>"",#REF!))),"") -> 
T88: =VLOOKUP(D88,#REF!,3,TRUE) ->  | AB88: =IF($A88<>"",IF(#REF!<>"",#REF!,IF(#REF!<>"",#REF!,IF(#REF!<>"",#REF!))),"") -> 
T89: =VLOOKUP(D89,#REF!,3,TRUE) ->  | AB89: =IF($A89<>"",IF(#REF!<>"",#REF!,IF(#REF!<>"",#REF!,IF(#REF!<>"",#REF!))),"") -> 
T90: =VLOOKUP(D90,#REF!,3,TRUE) ->  | AB90: =IF($A90<>"",IF(#REF!<>"",#REF!,IF(#REF!<>"",#REF!,IF(#REF!<>"",#REF!))),"") -> 
T91: =VLOOKUP(D91,#REF!,3,TRUE) ->  | AB91: =IF($A91<>"",IF(#REF!<>"",#REF!,IF(#REF!<>"",#REF!,IF(#REF!<>"",#REF!))),"") -> 
T92: 4.705 | AB92: =IF($A92<>"",IF(#REF!<>"",#REF!,IF(#REF!<>"",#REF!,IF(#REF!<>"",#REF!))),"") -> 
T93: =VLOOKUP(D93,#REF!,3,TRUE) ->  | AB93: =IF($A93<>"",IF(#REF!<>"",#REF!,IF(#REF!<>"",#REF!,IF(#REF!<>"",#REF!))),"") -> 
T94: 4.705 | AB94: =IF($A94<>"",IF(#REF!<>"",#REF!,IF(#REF!<>"",#REF!,IF(#REF!<>"",#REF!))),"") -> 
T95: =VLOOKUP(D95,#REF!,3,TRUE) ->  | AB95: =IF($A95<>"",IF(#REF!<>"",#REF!,IF(#REF!<>"",#REF!,IF(#REF!<>"",#REF!))),"") -> 
T96: =VLOOKUP(D96,#REF!,3,TRUE) ->  | AB96: =IF($A96<>"",IF(#REF!<>"",#REF!,IF(#REF!<>"",#REF!,IF(#REF!<>"",#REF!))),"") -> 
T97: =VLOOKUP(D97,#REF!,3,TRUE) ->  | AB97: =IF($A97<>"",IF(#REF!<>"",#REF!,IF(#REF!<>"",#REF!,IF(#REF!<>"",#REF!))),"") -> 
T98: =VLOOKUP(D98,#REF!,3,TRUE) ->  | AB98: =IF($A98<>"",IF(#REF!<>"",#REF!,IF(#REF!<>"",#REF!,IF(#REF!<>"",#REF!))),"") -> 
T99: =VLOOKUP(D99,#REF!,3,TRUE) ->  | AB99: =IF($A99<>"",IF(#REF!<>"",#REF!,IF(#REF!<>"",#REF!,IF(#REF!<>"",#REF!))),"") -> 
T100: =VLOOKUP(D100,#REF!,3,TRUE) ->  | AB100: =IF($A100<>"",IF(#REF!<>"",#REF!,IF(#REF!<>"",#REF!,IF(#REF!<>"",#REF!))),"") -> 
T101: =VLOOKUP(D101,#REF!,3,TRUE) ->  | AB101: =IF($A101<>"",IF(#REF!<>"",#REF!,IF(#REF!<>"",#REF!,IF(#REF!<>"",#REF!))),"") -> 
T102: =VLOOKUP(D102,#REF!,3,TRUE) ->  | AB102: =IF($A102<>"",IF(#REF!<>"",#REF!,IF(#REF!<>"",#REF!,IF(#REF!<>"",#REF!))),"") -> 
T103: =VLOOKUP(D103,#REF!,3,TRUE) ->  | AB103: =IF($A103<>"",IF(#REF!<>"",#REF!,IF(#REF!<>"",#REF!,IF(#REF!<>"",#REF!))),"") -> 
T104: =VLOOKUP(D104,#REF!,3,TRUE) ->  | AB104: =IF($A104<>"",IF(#REF!<>"",#REF!,IF(#REF!<>"",#REF!,IF(#REF!<>"",#REF!))),"") -> 
T105: =VLOOKUP(D105,#REF!,3,TRUE) ->  | AB105: =IF($A105<>"",IF(#REF!<>"",#REF!,IF(#REF!<>"",#REF!,IF(#REF!<>"",#REF!))),"") -> 
T106: =VLOOKUP(D106,#REF!,3,TRUE) ->  | AB106: =IF($A106<>"",IF(#REF!<>"",#REF!,IF(#REF!<>"",#REF!,IF(#REF!<>"",#REF!))),"") -> 
T107: =VLOOKUP(D107,#REF!,3,TRUE) ->  | AB107: =IF($A107<>"",IF(#REF!<>"",#REF!,IF(#REF!<>"",#REF!,IF(#REF!<>"",#REF!))),"") -> 
T108: =VLOOKUP(D108,#REF!,3,TRUE) ->  | AB108: =IF($A108<>"",IF(#REF!<>"",#REF!,IF(#REF!<>"",#REF!,IF(#REF!<>"",#REF!))),"") -> 
T109: =VLOOKUP(D109,#REF!,3,TRUE) ->  | AB109: =IF($A109<>"",IF(#REF!<>"",#REF!,IF(#REF!<>"",#REF!,IF(#REF!<>"",#REF!))),"") -> 
T110: =VLOOKUP(D110,#REF!,3,TRUE) ->  | AB110: =IF($A110<>"",IF(#REF!<>"",#REF!,IF(#REF!<>"",#REF!,IF(#REF!<>"",#REF!))),"") -> 
T111: =VLOOKUP(D111,#REF!,3,TRUE) ->  | AB111: =IF($A111<>"",IF(#REF!<>"",#REF!,IF(#REF!<>"",#REF!,IF(#REF!<>"",#REF!))),"") -> 
T112: =VLOOKUP(D112,#REF!,3,TRUE) ->  | AB112: =IF($A112<>"",IF(#REF!<>"",#REF!,IF(#REF!<>"",#REF!,IF(#REF!<>"",#REF!))),"") -> 
T113: =VLOOKUP(D113,#REF!,3,TRUE) ->  | AB113: =IF($A113<>"",IF(#REF!<>"",#REF!,IF(#REF!<>"",#REF!,IF(#REF!<>"",#REF!))),"") -> 
T114: =VLOOKUP(D114,#REF!,3,TRUE) ->  | AB114: =IF($A114<>"",IF(#REF!<>"",#REF!,IF(#REF!<>"",#REF!,IF(#REF!<>"",#REF!))),"") -> 
T115: =VLOOKUP(D115,#REF!,3,TRUE) ->  | AB115: =IF($A115<>"",IF(#REF!<>"",#REF!,IF(#REF!<>"",#REF!,IF(#REF!<>"",#REF!))),"") -> 
T116: =VLOOKUP(D116,#REF!,3,TRUE) ->  | AB116: =IF($A116<>"",IF(#REF!<>"",#REF!,IF(#REF!<>"",#REF!,IF(#REF!<>"",#REF!))),"") -> 
T117: =VLOOKUP(D117,#REF!,3,TRUE) ->  | AB117: =IF($A117<>"",IF(#REF!<>"",#REF!,IF(#REF!<>"",#REF!,IF(#REF!<>"",#REF!))),"") -> 
T118: =VLOOKUP(D118,#REF!,3,TRUE) ->  | AB118: =IF($A118<>"",IF(#REF!<>"",#REF!,IF(#REF!<>"",#REF!,IF(#REF!<>"",#REF!))),"") -> 
T119: =VLOOKUP(D119,#REF!,3,TRUE) ->  | AB119: =IF($A119<>"",IF(#REF!<>"",#REF!,IF(#REF!<>"",#REF!,IF(#REF!<>"",#REF!))),"") -> 
T120: =VLOOKUP(D120,#REF!,3,TRUE) ->  | AB120: =IF($A120<>"",IF(#REF!<>"",#REF!,IF(#REF!<>"",#REF!,IF(#REF!<>"",#REF!))),"") -> 
T121: =VLOOKUP(D121,#REF!,3,TRUE) ->  | AB121: =IF($A121<>"",IF(#REF!<>"",#REF!,IF(#REF!<>"",#REF!,IF(#REF!<>"",#REF!))),"") -> 
T122: =VLOOKUP(D122,#REF!,3,TRUE) ->  | AB122: =IF($A122<>"",IF(#REF!<>"",#REF!,IF(#REF!<>"",#REF!,IF(#REF!<>"",#REF!))),"") -> 
T123: =VLOOKUP(D123,#REF!,3,TRUE) ->  | AB123: =IF($A123<>"",IF(#REF!<>"",#REF!,IF(#REF!<>"",#REF!,IF(#REF!<>"",#REF!))),"") -> 
T124: =VLOOKUP(D124,#REF!,3,TRUE) ->  | AB124: =IF($A124<>"",IF(#REF!<>"",#REF!,IF(#REF!<>"",#REF!,IF(#REF!<>"",#REF!))),"") -> 
T125: =VLOOKUP(D125,#REF!,3,TRUE) ->  | AB125: =IF($A125<>"",IF(#REF!<>"",#REF!,IF(#REF!<>"",#REF!,IF(#REF!<>"",#REF!))),"") -> 
T126: =VLOOKUP(D126,#REF!,3,TRUE) ->  | AB126: =IF($A126<>"",IF(#REF!<>"",#REF!,IF(#REF!<>"",#REF!,IF(#REF!<>"",#REF!))),"") -> 
T127: =VLOOKUP(D127,#REF!,3,TRUE) ->  | AB127: =IF($A127<>"",IF(#REF!<>"",#REF!,IF(#REF!<>"",#REF!,IF(#REF!<>"",#REF!))),"") -> 
T128: =VLOOKUP(D128,#REF!,3,TRUE) ->  | AB128: =IF($A128<>"",IF(#REF!<>"",#REF!,IF(#REF!<>"",#REF!,IF(#REF!<>"",#REF!))),"") -> 
T129: =VLOOKUP(D129,#REF!,3,TRUE) ->  | AB129: =IF($A129<>"",IF(#REF!<>"",#REF!,IF(#REF!<>"",#REF!,IF(#REF!<>"",#REF!))),"") -> 
T130: =VLOOKUP(D130,#REF!,3,TRUE) ->  | AB130: =IF($A130<>"",IF(#REF!<>"",#REF!,IF(#REF!<>"",#REF!,IF(#REF!<>"",#REF!))),"") -> 
T131: =VLOOKUP(D131,#REF!,3,TRUE) ->  | AB131: =IF($A131<>"",IF(#REF!<>"",#REF!,IF(#REF!<>"",#REF!,IF(#REF!<>"",#REF!))),"") -> 
T132: =VLOOKUP(D132,#REF!,3,TRUE) ->  | AB132: =IF($A132<>"",IF(#REF!<>"",#REF!,IF(#REF!<>"",#REF!,IF(#REF!<>"",#REF!))),"") -> 
T133: =VLOOKUP(D133,#REF!,3,TRUE) ->  | AB133: =IF($A133<>"",IF(#REF!<>"",#REF!,IF(#REF!<>"",#REF!,IF(#REF!<>"",#REF!))),"") -> 
T134: =VLOOKUP(D134,#REF!,3,TRUE) ->  | AB134: =IF($A134<>"",IF(#REF!<>"",#REF!,IF(#REF!<>"",#REF!,IF(#REF!<>"",#REF!))),"") -> 
T135: =VLOOKUP(D135,#REF!,3,TRUE) ->  | AB135: =IF($A135<>"",IF(#REF!<>"",#REF!,IF(#REF!<>"",#REF!,IF(#REF!<>"",#REF!))),"") -> 
T136: =VLOOKUP(D136,#REF!,3,TRUE) ->  | AB136: =IF($A136<>"",IF(#REF!<>"",#REF!,IF(#REF!<>"",#REF!,IF(#REF!<>"",#REF!))),"") -> 
T137: =VLOOKUP(D137,#REF!,3,TRUE) ->  | AB137: =IF($A137<>"",IF(#REF!<>"",#REF!,IF(#REF!<>"",#REF!,IF(#REF!<>"",#REF!))),"") ->  | AH137: =AG137-W137-AI137 -> 
H138: =IF($A138<>"",F138-G138,"") ->  | I138: =IF(C138<>"",C138-(G138/1000),"") ->  | K138: =IF($A138<>"",((J138)/1510)*B138*1000,"") ->  | M138: =IF($A138<>"",((L138)/1510)*W138*1000,"") ->  | N138: =IF($A138<>"",IF(MAX(K138,M138)=M138,MAX(K138,M138)-MIN(K138,M138),MIN(K138,M138)-MAX(K138,M138)),"") ->  | O138: =IF($A138<>"",H138-N138,"") ->  | S138: =IF($A138<>"",IF(R138=0,B138-Q138/1000,B138-R138/1000),"") ->  | T138: =VLOOKUP(D138,#REF!,3,TRUE) ->  | W138: =S138 ->  | X138: =IF($A138<>"",((W139-W138)*1000)/D138,"") ->  | Z138: =IF($A138<>"",(W138-S138)*100,"") ->  | AA138: =IF($A138<>"",(P138-O138)/10,"") ->  | AB138: =IF($A138<>"",IF(#REF!<>"",#REF!,IF(#REF!<>"",#REF!,IF(#REF!<>"",#REF!))),"") -> 
E139: =IF($A139<>"",E138+D139,"") ->  | T139: =VLOOKUP(D139,#REF!,3,TRUE) ->  | U139: =IF(AND($A139<>"",S140<>""),((S140-S139)*1000)/D139,"") ->  | V139: =IF($A139<>"",ABS(U138-U139),"") ->  | Y139: =IF($A138<>"",ABS(X138-X139),"") ->  | AB139: =IF($A139<>"",IF(#REF!<>"",#REF!,IF(#REF!<>"",#REF!,IF(#REF!<>"",#REF!))),"") -> 
T140: =VLOOKUP(D140,#REF!,3,TRUE) ->  | AB140: =IF($A140<>"",IF(#REF!<>"",#REF!,IF(#REF!<>"",#REF!,IF(#REF!<>"",#REF!))),"") -> 
T141: =VLOOKUP(D141,#REF!,3,TRUE) ->  | AB141: =IF($A141<>"",IF(#REF!<>"",#REF!,IF(#REF!<>"",#REF!,IF(#REF!<>"",#REF!))),"") -> 
T142: =VLOOKUP(D142,#REF!,3,TRUE) ->  | AB142: =IF($A142<>"",IF(#REF!<>"",#REF!,IF(#REF!<>"",#REF!,IF(#REF!<>"",#REF!))),"") -> 
T143: =VLOOKUP(D143,#REF!,3,TRUE) ->  | AB143: =IF($A143<>"",IF(#REF!<>"",#REF!,IF(#REF!<>"",#REF!,IF(#REF!<>"",#REF!))),"") -> 
T144: =VLOOKUP(D144,#REF!,3,TRUE) ->  | AB144: =IF($A144<>"",IF(#REF!<>"",#REF!,IF(#REF!<>"",#REF!,IF(#REF!<>"",#REF!))),"") -> 
T145: =VLOOKUP(D145,#REF!,3,TRUE) ->  | AB145: =IF($A145<>"",IF(#REF!<>"",#REF!,IF(#REF!<>"",#REF!,IF(#REF!<>"",#REF!))),"") -> 
T146: =VLOOKUP(D146,#REF!,3,TRUE) ->  | AB146: =IF($A146<>"",IF(#REF!<>"",#REF!,IF(#REF!<>"",#REF!,IF(#REF!<>"",#REF!))),"") -> 
T147: =VLOOKUP(D147,#REF!,3,TRUE) ->  | AB147: =IF($A147<>"",IF(#REF!<>"",#REF!,IF(#REF!<>"",#REF!,IF(#REF!<>"",#REF!))),"") -> 
T148: =VLOOKUP(D148,#REF!,3,TRUE) ->  | AB148: =IF($A148<>"",IF(#REF!<>"",#REF!,IF(#REF!<>"",#REF!,IF(#REF!<>"",#REF!))),"") -> 
T149: =VLOOKUP(D149,#REF!,3,TRUE) ->  | AB149: =IF($A149<>"",IF(#REF!<>"",#REF!,IF(#REF!<>"",#REF!,IF(#REF!<>"",#REF!))),"") -> 
T150: =VLOOKUP(D150,#REF!,3,TRUE) ->  | AB150: =IF($A150<>"",IF(#REF!<>"",#REF!,IF(#REF!<>"",#REF!,IF(#REF!<>"",#REF!))),"") -> 
T151: =VLOOKUP(D151,#REF!,3,TRUE) ->  | AB151: =IF($A151<>"",IF(#REF!<>"",#REF!,IF(#REF!<>"",#REF!,IF(#REF!<>"",#REF!))),"") -> 
T152: =VLOOKUP(D152,#REF!,3,TRUE) ->  | AB152: =IF($A152<>"",IF(#REF!<>"",#REF!,IF(#REF!<>"",#REF!,IF(#REF!<>"",#REF!))),"") -> 
T153: =VLOOKUP(D153,#REF!,3,TRUE) ->  | AB153: =IF($A153<>"",IF(#REF!<>"",#REF!,IF(#REF!<>"",#REF!,IF(#REF!<>"",#REF!))),"") -> 
T154: =VLOOKUP(D154,#REF!,3,TRUE) ->  | AB154: =IF($A154<>"",IF(#REF!<>"",#REF!,IF(#REF!<>"",#REF!,IF(#REF!<>"",#REF!))),"") -> 
T155: =VLOOKUP(D155,#REF!,3,TRUE) ->  | AB155: =IF($A155<>"",IF(#REF!<>"",#REF!,IF(#REF!<>"",#REF!,IF(#REF!<>"",#REF!))),"") -> 
T156: =VLOOKUP(D156,#REF!,3,TRUE) ->  | AB156: =IF($A156<>"",IF(#REF!<>"",#REF!,IF(#REF!<>"",#REF!,IF(#REF!<>"",#REF!))),"") -> 
T157: =VLOOKUP(D157,#REF!,3,TRUE) ->  | AB157: =IF($A157<>"",IF(#REF!<>"",#REF!,IF(#REF!<>"",#REF!,IF(#REF!<>"",#REF!))),"") -> 
T158: =VLOOKUP(D158,#REF!,3,TRUE) ->  | AB158: =IF($A158<>"",IF(#REF!<>"",#REF!,IF(#REF!<>"",#REF!,IF(#REF!<>"",#REF!))),"") -> 
T159: =VLOOKUP(D159,#REF!,3,TRUE) ->  | AB159: =IF($A159<>"",IF(#REF!<>"",#REF!,IF(#REF!<>"",#REF!,IF(#REF!<>"",#REF!))),"") -> 
T160: =VLOOKUP(D160,#REF!,3,TRUE) ->  | AB160: =IF($A160<>"",IF(#REF!<>"",#REF!,IF(#REF!<>"",#REF!,IF(#REF!<>"",#REF!))),"") -> 
T161: =VLOOKUP(D161,#REF!,3,TRUE) ->  | AB161: =IF($A161<>"",IF(#REF!<>"",#REF!,IF(#REF!<>"",#REF!,IF(#REF!<>"",#REF!))),"") -> 
T162: =VLOOKUP(D162,#REF!,3,TRUE) ->  | AB162: =IF($A162<>"",IF(#REF!<>"",#REF!,IF(#REF!<>"",#REF!,IF(#REF!<>"",#REF!))),"") -> 
T163: =VLOOKUP(D163,#REF!,3,TRUE) ->  | AB163: =IF($A163<>"",IF(#REF!<>"",#REF!,IF(#REF!<>"",#REF!,IF(#REF!<>"",#REF!))),"") -> 
T164: =VLOOKUP(D164,#REF!,3,TRUE) ->  | AB164: =IF($A164<>"",IF(#REF!<>"",#REF!,IF(#REF!<>"",#REF!,IF(#REF!<>"",#REF!))),"") -> 
T165: =VLOOKUP(D165,#REF!,3,TRUE) ->  | AB165: =IF($A165<>"",IF(#REF!<>"",#REF!,IF(#REF!<>"",#REF!,IF(#REF!<>"",#REF!))),"") -> 
T166: =VLOOKUP(D166,#REF!,3,TRUE) ->  | AB166: =IF($A166<>"",IF(#REF!<>"",#REF!,IF(#REF!<>"",#REF!,IF(#REF!<>"",#REF!))),"") -> 
T167: =VLOOKUP(D167,#REF!,3,TRUE) ->  | AB167: =IF($A167<>"",IF(#REF!<>"",#REF!,IF(#REF!<>"",#REF!,IF(#REF!<>"",#REF!))),"") -> 
T168: =VLOOKUP(D168,#REF!,3,TRUE) ->  | AB168: =IF($A168<>"",IF(#REF!<>"",#REF!,IF(#REF!<>"",#REF!,IF(#REF!<>"",#REF!))),"") -> 
T169: =VLOOKUP(D169,#REF!,3,TRUE) ->  | AB169: =IF($A169<>"",IF(#REF!<>"",#REF!,IF(#REF!<>"",#REF!,IF(#REF!<>"",#REF!))),"") -> 
T170: =VLOOKUP(D170,#REF!,3,TRUE) ->  | AB170: =IF($A170<>"",IF(#REF!<>"",#REF!,IF(#REF!<>"",#REF!,IF(#REF!<>"",#REF!))),"") -> 
T171: =VLOOKUP(D171,#REF!,3,TRUE) ->  | AB171: =IF($A171<>"",IF(#REF!<>"",#REF!,IF(#REF!<>"",#REF!,IF(#REF!<>"",#REF!))),"") -> 
T172: =VLOOKUP(D172,#REF!,3,TRUE) ->  | AB172: =IF($A172<>"",IF(#REF!<>"",#REF!,IF(#REF!<>"",#REF!,IF(#REF!<>"",#REF!))),"") -> 
T173: =VLOOKUP(D173,#REF!,3,TRUE) ->  | AB173: =IF($A173<>"",IF(#REF!<>"",#REF!,IF(#REF!<>"",#REF!,IF(#REF!<>"",#REF!))),"") -> 
T174: =VLOOKUP(D174,#REF!,3,TRUE) ->  | AB174: =IF($A174<>"",IF(#REF!<>"",#REF!,IF(#REF!<>"",#REF!,IF(#REF!<>"",#REF!))),"") -> 
T175: =VLOOKUP(D175,#REF!,3,TRUE) ->  | AB175: =IF($A175<>"",IF(#REF!<>"",#REF!,IF(#REF!<>"",#REF!,IF(#REF!<>"",#REF!))),"") -> 
T176: =VLOOKUP(D176,#REF!,3,TRUE) ->  | AB176: =IF($A176<>"",IF(#REF!<>"",#REF!,IF(#REF!<>"",#REF!,IF(#REF!<>"",#REF!))),"") -> 
T177: =VLOOKUP(D177,#REF!,3,TRUE) ->  | AB177: =IF($A177<>"",IF(#REF!<>"",#REF!,IF(#REF!<>"",#REF!,IF(#REF!<>"",#REF!))),"") -> 
T178: =VLOOKUP(D178,#REF!,3,TRUE) ->  | AB178: =IF($A178<>"",IF(#REF!<>"",#REF!,IF(#REF!<>"",#REF!,IF(#REF!<>"",#REF!))),"") -> 
T179: =VLOOKUP(D179,#REF!,3,TRUE) ->  | AB179: =IF($A179<>"",IF(#REF!<>"",#REF!,IF(#REF!<>"",#REF!,IF(#REF!<>"",#REF!))),"") -> 
T180: =VLOOKUP(D180,#REF!,3,TRUE) ->  | AB180: =IF($A180<>"",IF(#REF!<>"",#REF!,IF(#REF!<>"",#REF!,IF(#REF!<>"",#REF!))),"") -> 
T181: =VLOOKUP(D181,#REF!,3,TRUE) ->  | AB181: =IF($A181<>"",IF(#REF!<>"",#REF!,IF(#REF!<>"",#REF!,IF(#REF!<>"",#REF!))),"") -> 
T182: =VLOOKUP(D182,#REF!,3,TRUE) ->  | AB182: =IF($A182<>"",IF(#REF!<>"",#REF!,IF(#REF!<>"",#REF!,IF(#REF!<>"",#REF!))),"") -> 
T183: =VLOOKUP(D183,#REF!,3,TRUE) ->  | AB183: =IF($A183<>"",IF(#REF!<>"",#REF!,IF(#REF!<>"",#REF!,IF(#REF!<>"",#REF!))),"") -> 
T184: =VLOOKUP(D184,#REF!,3,TRUE) ->  | AB184: =IF($A184<>"",IF(#REF!<>"",#REF!,IF(#REF!<>"",#REF!,IF(#REF!<>"",#REF!))),"") -> 
T185: =VLOOKUP(D185,#REF!,3,TRUE) ->  | AB185: =IF($A185<>"",IF(#REF!<>"",#REF!,IF(#REF!<>"",#REF!,IF(#REF!<>"",#REF!))),"") -> 
T186: =VLOOKUP(D186,#REF!,3,TRUE) ->  | AB186: =IF($A186<>"",IF(#REF!<>"",#REF!,IF(#REF!<>"",#REF!,IF(#REF!<>"",#REF!))),"") -> 
T187: =VLOOKUP(D187,#REF!,3,TRUE) ->  | AB187: =IF($A187<>"",IF(#REF!<>"",#REF!,IF(#REF!<>"",#REF!,IF(#REF!<>"",#REF!))),"") -> 
T188: =VLOOKUP(D188,#REF!,3,TRUE) ->  | AB188: =IF($A188<>"",IF(#REF!<>"",#REF!,IF(#REF!<>"",#REF!,IF(#REF!<>"",#REF!))),"") -> 
T189: =VLOOKUP(D189,#REF!,3,TRUE) ->  | AB189: =IF($A189<>"",IF(#REF!<>"",#REF!,IF(#REF!<>"",#REF!,IF(#REF!<>"",#REF!))),"") -> 
T190: =VLOOKUP(D190,#REF!,3,TRUE) ->  | AB190: =IF($A190<>"",IF(#REF!<>"",#REF!,IF(#REF!<>"",#REF!,IF(#REF!<>"",#REF!))),"") -> 
T191: =VLOOKUP(D191,#REF!,3,TRUE) ->  | AB191: =IF($A191<>"",IF(#REF!<>"",#REF!,IF(#REF!<>"",#REF!,IF(#REF!<>"",#REF!))),"") -> 
T192: =VLOOKUP(D192,#REF!,3,TRUE) ->  | AB192: =IF($A192<>"",IF(#REF!<>"",#REF!,IF(#REF!<>"",#REF!,IF(#REF!<>"",#REF!))),"") -> 
T193: =VLOOKUP(D193,#REF!,3,TRUE) ->  | AB193: =IF($A193<>"",IF(#REF!<>"",#REF!,IF(#REF!<>"",#REF!,IF(#REF!<>"",#REF!))),"") -> 
T194: =VLOOKUP(D194,#REF!,3,TRUE) ->  | AB194: =IF($A194<>"",IF(#REF!<>"",#REF!,IF(#REF!<>"",#REF!,IF(#REF!<>"",#REF!))),"") -> 
T195: =VLOOKUP(D195,#REF!,3,TRUE) ->  | AB195: =IF($A195<>"",IF(#REF!<>"",#REF!,IF(#REF!<>"",#REF!,IF(#REF!<>"",#REF!))),"") -> 
T196: =VLOOKUP(D196,#REF!,3,TRUE) ->  | AB196: =IF($A196<>"",IF(#REF!<>"",#REF!,IF(#REF!<>"",#REF!,IF(#REF!<>"",#REF!))),"") -> 
T197: =VLOOKUP(D197,#REF!,3,TRUE) ->  | AB197: =IF($A197<>"",IF(#REF!<>"",#REF!,IF(#REF!<>"",#REF!,IF(#REF!<>"",#REF!))),"") -> 
T198: =VLOOKUP(D198,#REF!,3,TRUE) ->  | AB198: =IF($A198<>"",IF(#REF!<>"",#REF!,IF(#REF!<>"",#REF!,IF(#REF!<>"",#REF!))),"") -> 
T199: =VLOOKUP(D199,#REF!,3,TRUE) ->  | AB199: =IF($A199<>"",IF(#REF!<>"",#REF!,IF(#REF!<>"",#REF!,IF(#REF!<>"",#REF!))),"") -> 
T200: =VLOOKUP(D200,#REF!,3,TRUE) ->  | AB200: =IF($A200<>"",IF(#REF!<>"",#REF!,IF(#REF!<>"",#REF!,IF(#REF!<>"",#REF!))),"") -> 
T201: =VLOOKUP(D201,#REF!,3,TRUE) ->  | AB201: =IF($A201<>"",IF(#REF!<>"",#REF!,IF(#REF!<>"",#REF!,IF(#REF!<>"",#REF!))),"") ->  | AH201: =AG201-W201-AI201 -> 
... 11 more rows

Sheet Profil en Long

Sheet PDETx (hidden)
A1: PREPARATION DETAIL ESTIMATIF TRAVAUX
A2: Projet : | E2: =#REF! -> 
A3: Date :
A7: N° Support | B7: N° de prix | D7: TOTAUX | G7: Quantité | K7: Désignation
C8: Quantité | E8: Jour semaine | F8: Nuit semaine | G8: Jour Sa | H8: Jour Di ou Férié | I8: Nuit Sa/Di | J8: Nuit Di/Lu
A9: =#REF! ->  | B9: 24011 | C9: =#REF! ->  | D9: =IF(HLOOKUP(B9,ARTICLE_S39,(2+L9))=0,"",HLOOKUP(B9,ARTICLE_S39,(2+L9))) ->  | F9: x | K9: =IF(HLOOKUP(B9,ARTICLE_S39,2)=0,"",HLOOKUP(B9,ARTICLE_S39,2)) ->  | L9: 1 | M9: NB SUPPORT | O9: 12 | AA9: Fourniture & usinage ferrures (kg) | AB9: Chargement engins de levage (t) | AC9: Chargement à la main (t) | AD9: Déchargement engins de levage (t) | AE9: Déchargement à la main (t) | AF9: Abaissement ou exhaussement du plan de contact par rippage d'une pièce d'attache VC (unité) | AG9: Abaissement ou exhaussement du plan de contact par rippage d'une pièce d'attache (deux consoles sur traverse) (unité) | AH9: Abaissement ou exhaussement du plan de contact par rippage d'une pièce d'attache (trois consoles sur traverse) (unité) | AI9: Remplacement armement (unité) | AJ9: Ripage horizontal de chaise de tous type de portique rigide (unité) | AK9: Reprise & équilibrage de la tension mécanique d'une caténaire régularisée (unité) | AL9: Ripage horizontal sur support indépendant par réglage du BDR et de l'hauban (unité) | AM9: Remplacement pendulage (km) | AN9: Pose d'un antibalançant sans BDR (unité) | AO9: Pose d'un antibalançant avec BDR (unité) | AP9: Pose d'un antibalançant isolé avec BDR (unité) | AQ9: Pose d'un pendule anti-vent (unité) | AR9: Pose d'un bras de rappel (unité) | AS9: Dépose d'un antibalançant avec BDR (unité) | AT9: Dépose d'un antibalançant isolé avec BDR (unité) | AU9: Dépose d'un antibalançant sans BDR (unité) | AV9: Dépose d'un pendule anti-vent (unité) | AW9: Dépose d'un bras de rappel (unité) | AX9: Pose ou dépose d'une plaque de numérotation (unité)
B10: 24020 | C10: =(#REF!)*0.001 ->  | F10: x | L10: 1
B11: 24021 | C11: =#REF! ->  | F11: x | L11: 1
B12: 24022 | C12: =(#REF!)*0.001 ->  | F12: x | L12: 1 | AM12: Fourniture & usinage ferrures (kg)
B13: 24023 | C13: =#REF! ->  | F13: x | L13: 1 | AM13: Chargement engins de levage (t)
B14: 27005 | C14: =#REF! ->  | F14: x | L14: 1 | AM14: Chargement à la main (t)
B15: 27006 | C15: =#REF! ->  | F15: x | L15: 1 | AM15: Déchargement engins de levage (t)
B16: 27007 | C16: =#REF! ->  | F16: x | L16: 1 | AM16: Déchargement à la main (t)
B17: 27019 | C17: =(#REF!)*0.001 ->  | F17: x | L17: 1 | AM17: Abaissement ou exhaussement du plan de contact par rippage d'une pièce d'attache VC (unité)
B18: 27081 | C18: =#REF! ->  | F18: x | L18: 1 | AM18: Abaissement ou exhaussement du plan de contact par rippage d'une pièce d'attache (deux consoles sur traverse) (unité)
B19: 33003 | C19: =#REF! ->  | F19: x | L19: 1 | AM19: Abaissement ou exhaussement du plan de contact par rippage d'une pièce d'attache (trois consoles sur traverse) (unité)
B20: 33016 | C20: =#REF! ->  | F20: x | L20: 1 | AM20: Remplacement armement (unité)
B21: 34017-02 | C21: =#REF! ->  | F21: x | L21: 1 | AM21: Ripage horizontal de chaise de tous type de portique rigide (unité)
B22: 34060 | C22: =(#REF!)*0.001 ->  | F22: x | L22: 1 | AM22: Reprise & équilibrage de la tension mécanique d'une caténaire régularisée (unité)
B23: 34061 | C23: =#REF! ->  | F23: x | L23: 1 | AM23: Ripage horizontal sur support indépendant par réglage du BDR et de l'hauban (unité)
B24: 34062 | C24: =#REF! ->  | F24: x | L24: 1 | AM24: Remplacement pendulage (km)
B25: 34063 | C25: =#REF! ->  | F25: x | L25: 1 | AM25: Pose d'un antibalançant sans BDR (unité)
B26: 34064 | C26: =#REF! ->  | F26: x | L26: 1 | AM26: Pose d'un antibalançant avec BDR (unité)
B27: 34068 | C27: =(#REF!)*0.001 ->  | F27: x | L27: 1 | AM27: Pose d'un antibalançant isolé avec BDR (unité)
B28: 34069 | C28: =#REF! ->  | F28: x | L28: 1 | AM28: Pose d'un pendule anti-vent (unité)
B29: 34070 | C29: =#REF! ->  | F29: x | L29: 1 | AM29: Pose d'un bras de rappel (unité)
B30: 34074 | C30: =#REF! ->  | F30: x | L30: 1 | AM30: Dépose d'un antibalançant avec BDR (unité)
B31: 34071 | C31: =#REF! ->  | F31: x | L31: 1 | AM31: Dépose d'un antibalançant isolé avec BDR (unité)
B32: 63004 | F32: x | L32: 1 | AM32: Dépose d'un antibalançant sans BDR (unité)
A33: =#REF! ->  | B33: 24011 | C33: =#REF! ->  | F33: x | L33: 2 | AM33: Dépose d'un pendule anti-vent (unité)
B34: 24020 | C34: =(#REF!)*0.001 ->  | F34: x | L34: 2 | AM34: Dépose d'un bras de rappel (unité)
B35: 24021 | C35: =#REF! ->  | F35: x | L35: 2 | AM35: Pose ou dépose d'une plaque de numérotation (unité)
B36: 24022 | C36: =(#REF!)*0.001 ->  | F36: x | L36: 2
B37: 24023 | C37: =#REF! ->  | F37: x | L37: 2
B38: 27005 | C38: =#REF! ->  | F38: x | L38: 2
B39: 27006 | C39: =#REF! ->  | F39: x | L39: 2
B40: 27007 | C40: =#REF! ->  | F40: x | L40: 2
B41: 27019 | C41: =(#REF!)*0.001 ->  | F41: x | L41: 2
B42: 27081 | C42: =#REF! ->  | F42: x | L42: 2
B43: 33003 | C43: =#REF! ->  | F43: x | L43: 2
B44: 33016 | C44: =#REF! ->  | F44: x | L44: 2
B45: 34017-02 | C45: =#REF! ->  | F45: x | L45: 2
B46: 34060 | C46: =(#REF!)*0.001 ->  | F46: x | L46: 2
B47: 34061 | C47: =#REF! ->  | F47: x | L47: 2
B48: 34062 | C48: =#REF! ->  | F48: x | L48: 2
B49: 34063 | C49: =#REF! ->  | F49: x | L49: 2
B50: 34064 | C50: =#REF! ->  | F50: x | L50: 2
B51: 34068 | C51: =(#REF!)*0.001 ->  | F51: x | L51: 2
B52: 34069 | C52: =#REF! ->  | F52: x | L52: 2
B53: 34070 | C53: =#REF! ->  | F53: x | L53: 2
B54: 34074 | C54: =#REF! ->  | F54: x | L54: 2
B55: 34071 | C55: =#REF! ->  | F55: x | L55: 2
B56: 63004 | F56: x | L56: 2
A57: =#REF! ->  | B57: 24011 | C57: =#REF! ->  | F57: x | L57: 3
B58: 24020 | C58: =(#REF!)*0.001 ->  | F58: x | L58: 3
B59: 24021 | C59: =#REF! ->  | F59: x | L59: 3
B60: 24022 | C60: =(#REF!)*0.001 ->  | F60: x | L60: 3
B61: 24023 | C61: =#REF! ->  | F61: x | L61: 3
B62: 27005 | C62: =#REF! ->  | F62: x | L62: 3
B63: 27006 | C63: =#REF! ->  | F63: x | L63: 3
B64: 27007 | C64: =#REF! ->  | F64: x | L64: 3
B65: 27019 | C65: =(#REF!)*0.001 ->  | F65: x | L65: 3
B66: 27081 | C66: =#REF! ->  | F66: x | L66: 3
B67: 33003 | C67: =#REF! ->  | F67: x | L67: 3
B68: 33016 | C68: =#REF! ->  | F68: x | L68: 3
B69: 34017-02 | C69: =#REF! ->  | F69: x | L69: 3
B70: 34060 | C70: =(#REF!)*0.001 ->  | F70: x | L70: 3
B71: 34061 | C71: =#REF! ->  | F71: x | L71: 3
B72: 34062 | C72: =#REF! ->  | F72: x | L72: 3
B73: 34063 | C73: =#REF! ->  | D73: =IF(HLOOKUP(B73,ARTICLE_S39,(2+L73))=0,"",HLOOKUP(B73,ARTICLE_S39,(2+L73))) ->  | F73: x | K73: =IF(HLOOKUP(B73,ARTICLE_S39,2)=0,"",HLOOKUP(B73,ARTICLE_S39,2)) ->  | L73: 3
B74: 34064 | C74: =#REF! ->  | F74: x | L74: 3
B75: 34068 | C75: =(#REF!)*0.001 ->  | F75: x | L75: 3
B76: 34069 | C76: =#REF! ->  | F76: x | L76: 3
B77: 34070 | C77: =#REF! ->  | F77: x | L77: 3
B78: 34074 | C78: =#REF! ->  | F78: x | L78: 3
B79: 34071 | C79: =#REF! ->  | F79: x | L79: 3
B80: 63004 | F80: x | L80: 3
A81: =#REF! ->  | B81: 24011 | C81: =#REF! ->  | F81: x | L81: 4
B82: 24020 | C82: =(#REF!)*0.001 ->  | F82: x | L82: 4
B83: 24021 | C83: =#REF! ->  | F83: x | L83: 4
B84: 24022 | C84: =(#REF!)*0.001 ->  | F84: x | L84: 4
B85: 24023 | C85: =#REF! ->  | F85: x | L85: 4
B86: 27005 | C86: =#REF! ->  | F86: x | L86: 4
B87: 27006 | C87: =#REF! ->  | F87: x | L87: 4
B88: 27007 | C88: =#REF! ->  | F88: x | L88: 4
B89: 27019 | C89: =(#REF!)*0.001 ->  | F89: x | L89: 4
B90: 27081 | C90: =#REF! ->  | F90: x | L90: 4
B91: 33003 | C91: =#REF! ->  | F91: x | L91: 4
B92: 33016 | C92: =#REF! ->  | F92: x | L92: 4
B93: 34017-02 | C93: =#REF! ->  | F93: x | L93: 4
B94: 34060 | C94: =(#REF!)*0.001 ->  | F94: x | L94: 4
B95: 34061 | C95: =#REF! ->  | F95: x | L95: 4
B96: 34062 | C96: =#REF! ->  | F96: x | L96: 4
B97: 34063 | C97: =#REF! ->  | F97: x | L97: 4
B98: 34064 | C98: =#REF! ->  | F98: x | L98: 4
B99: 34068 | C99: =(#REF!)*0.001 ->  | F99: x | L99: 4
B100: 34069 | C100: =#REF! ->  | F100: x | L100: 4
B101: 34070 | C101: =#REF! ->  | F101: x | L101: 4
B102: 34074 | C102: =#REF! ->  | F102: x | L102: 4
B103: 34071 | C103: =#REF! ->  | F103: x | L103: 4
B104: 63004 | F104: x | L104: 4
A105: =#REF! ->  | B105: 24011 | C105: =#REF! ->  | F105: x | L105: 5
B106: 24020 | C106: =(#REF!)*0.001 ->  | F106: x | L106: 5
B107: 24021 | C107: =#REF! ->  | F107: x | L107: 5
B108: 24022 | C108: =(#REF!)*0.001 ->  | F108: x | L108: 5
B109: 24023 | C109: =#REF! ->  | F109: x | L109: 5
B110: 27005 | C110: =#REF! ->  | F110: x | L110: 5
B111: 27006 | C111: =#REF! ->  | F111: x | L111: 5
B112: 27007 | C112: =#REF! ->  | F112: x | L112: 5
B113: 27019 | C113: =(#REF!)*0.001 ->  | F113: x | L113: 5
B114: 27081 | C114: =#REF! ->  | F114: x | L114: 5
B115: 33003 | C115: =#REF! ->  | F115: x | L115: 5
B116: 33016 | C116: =#REF! ->  | F116: x | L116: 5
B117: 34017-02 | C117: =#REF! ->  | F117: x | L117: 5
B118: 34060 | C118: =(#REF!)*0.001 ->  | F118: x | L118: 5
B119: 34061 | C119: =#REF! ->  | F119: x | L119: 5
B120: 34062 | C120: =#REF! ->  | F120: x | L120: 5
B121: 34063 | C121: =#REF! ->  | F121: x | L121: 5
B122: 34064 | C122: =#REF! ->  | F122: x | L122: 5
B123: 34068 | C123: =(#REF!)*0.001 ->  | F123: x | L123: 5
B124: 34069 | C124: =#REF! ->  | F124: x | L124: 5
B125: 34070 | C125: =#REF! ->  | F125: x | L125: 5
B126: 34074 | C126: =#REF! ->  | F126: x | L126: 5
B127: 34071 | C127: =#REF! ->  | F127: x | L127: 5
B128: 63004 | F128: x | L128: 5
A129: =#REF! ->  | B129: 24011 | C129: =#REF! ->  | F129: x | L129: 6
B130: 24020 | C130: =(#REF!)*0.001 ->  | F130: x | L130: 6
B131: 24021 | C131: =#REF! ->  | F131: x | L131: 6
B132: 24022 | C132: =(#REF!)*0.001 ->  | F132: x | L132: 6
B133: 24023 | C133: =#REF! ->  | F133: x | L133: 6
B134: 27005 | C134: =#REF! ->  | F134: x | L134: 6
B135: 27006 | C135: =#REF! ->  | F135: x | L135: 6
B136: 27007 | C136: =#REF! ->  | F136: x | L136: 6
B137: 27019 | C137: =(#REF!)*0.001 ->  | D137: =IF(HLOOKUP(B137,ARTICLE_S39,(2+L137))=0,"",HLOOKUP(B137,ARTICLE_S39,(2+L137))) ->  | F137: x | K137: =IF(HLOOKUP(B137,ARTICLE_S39,2)=0,"",HLOOKUP(B137,ARTICLE_S39,2)) ->  | L137: 6
B138: 27081 | C138: =#REF! ->  | F138: x | L138: 6
B139: 33003 | C139: =#REF! ->  | F139: x | L139: 6
B140: 33016 | C140: =#REF! ->  | F140: x | L140: 6
B141: 34017-02 | C141: =#REF! ->  | F141: x | L141: 6
B142: 34060 | C142: =(#REF!)*0.001 ->  | F142: x | L142: 6
B143: 34061 | C143: =#REF! ->  | F143: x | L143: 6
B144: 34062 | C144: =#REF! ->  | F144: x | L144: 6
B145: 34063 | C145: =#REF! ->  | F145: x | L145: 6
B146: 34064 | C146: =#REF! ->  | F146: x | L146: 6
B147: 34068 | C147: =(#REF!)*0.001 ->  | F147: x | L147: 6
B148: 34069 | C148: =#REF! ->  | F148: x | L148: 6
B149: 34070 | C149: =#REF! ->  | F149: x | L149: 6
B150: 34074 | C150: =#REF! ->  | F150: x | L150: 6
B151: 34071 | C151: =#REF! ->  | F151: x | L151: 6
B152: 63004 | F152: x | L152: 6
A153: =#REF! ->  | B153: 24011 | C153: =#REF! ->  | F153: x | L153: 7
B154: 24020 | C154: =(#REF!)*0.001 ->  | F154: x | L154: 7
B155: 24021 | C155: =#REF! ->  | F155: x | L155: 7
B156: 24022 | C156: =(#REF!)*0.001 ->  | F156: x | L156: 7
B157: 24023 | C157: =#REF! ->  | F157: x | L157: 7
B158: 27005 | C158: =#REF! ->  | F158: x | L158: 7
B159: 27006 | C159: =#REF! ->  | F159: x | L159: 7
B160: 27007 | C160: =#REF! ->  | F160: x | L160: 7
B161: 27019 | C161: =(#REF!)*0.001 ->  | F161: x | L161: 7
B162: 27081 | C162: =#REF! ->  | F162: x | L162: 7
B163: 33003 | C163: =#REF! ->  | F163: x | L163: 7
B164: 33016 | C164: =#REF! ->  | F164: x | L164: 7
B165: 34017-02 | C165: =#REF! ->  | F165: x | L165: 7
B166: 34060 | C166: =(#REF!)*0.001 ->  | F166: x | L166: 7
B167: 34061 | C167: =#REF! ->  | F167: x | L167: 7
B168: 34062 | C168: =#REF! ->  | F168: x | L168: 7
B169: 34063 | C169: =#REF! ->  | F169: x | L169: 7
B170: 34064 | C170: =#REF! ->  | F170: x | L170: 7
B171: 34068 | C171: =(#REF!)*0.001 ->  | F171: x | L171: 7
B172: 34069 | C172: =#REF! ->  | F172: x | L172: 7
B173: 34070 | C173: =#REF! ->  | F173: x | L173: 7
B174: 34074 | C174: =#REF! ->  | F174: x | L174: 7
B175: 34071 | C175: =#REF! ->  | F175: x | L175: 7
B176: 63004 | F176: x | L176: 7
A177: =#REF! ->  | B177: 24011 | C177: =#REF! ->  | F177: x | L177: 8
B178: 24020 | C178: =(#REF!)*0.001 ->  | F178: x | L178: 8
B179: 24021 | C179: =#REF! ->  | F179: x | L179: 8
B180: 24022 | C180: =(#REF!)*0.001 ->  | F180: x | L180: 8
B181: 24023 | C181: =#REF! ->  | F181: x | L181: 8
B182: 27005 | C182: =#REF! ->  | F182: x | L182: 8
B183: 27006 | C183: =#REF! ->  | F183: x | L183: 8
B184: 27007 | C184: =#REF! ->  | F184: x | L184: 8
B185: 27019 | C185: =(#REF!)*0.001 ->  | F185: x | L185: 8
B186: 27081 | C186: =#REF! ->  | F186: x | L186: 8
B187: 33003 | C187: =#REF! ->  | F187: x | L187: 8
B188: 33016 | C188: =#REF! ->  | F188: x | L188: 8
B189: 34017-02 | C189: =#REF! ->  | F189: x | L189: 8
B190: 34060 | C190: =(#REF!)*0.001 ->  | F190: x | L190: 8
B191: 34061 | C191: =#REF! ->  | F191: x | L191: 8
B192: 34062 | C192: =#REF! ->  | F192: x | L192: 8
B193: 34063 | C193: =#REF! ->  | F193: x | L193: 8
B194: 34064 | C194: =#REF! ->  | F194: x | L194: 8
B195: 34068 | C195: =(#REF!)*0.001 ->  | F195: x | L195: 8
B196: 34069 | C196: =#REF! ->  | F196: x | L196: 8
B197: 34070 | C197: =#REF! ->  | F197: x | L197: 8
B198: 34074 | C198: =#REF! ->  | F198: x | L198: 8
B199: 34071 | C199: =#REF! ->  | F199: x | L199: 8
B200: 63004 | F200: x | L200: 8
A201: =#REF! ->  | B201: 24011 | C201: =#REF! ->  | D201: =IF(HLOOKUP(B201,ARTICLE_S39,(2+L201))=0,"",HLOOKUP(B201,ARTICLE_S39,(2+L201))) ->  | F201: x | K201: =IF(HLOOKUP(B201,ARTICLE_S39,2)=0,"",HLOOKUP(B201,ARTICLE_S39,2)) ->  | L201: 9
B202: 24020 | C202: =(#REF!)*0.001 ->  | F202: x | L202: 9
B203: 24021 | C203: =#REF! ->  | F203: x | L203: 9
... 381 more rows

Sheet LMP (hidden)
A1: LISTE DE MATERIEL PREVISIONNEL
A2: Date | B2: 02/10/2014
A3: Projet | B3: GOP PARIS NORD 2015
A4: Phase/lot : | B4: V1L
A7: N°SUPPORT | B7: Symbole | C7: Plan | D7: Repère | E7: Quantité | F7: Désignation
A8: 18-63KBIS | B8: =VLOOKUP(C8&D8,ListeMaterielTGV,3) -> 0.098.4003 | C8: 222682 | D8: 102 | E8: 1 | F8: =VLOOKUP(C8&D8,ListeMaterielTGV,2) -> ATT 2 HAUB E=1,00 222682 R.102
A9: AST-T | B9: 0.098.4517 | C9: 225128 | D9: 102 | E9: 1 | F9: ATT 2 CONS E=1,00 225128 R.102
B10: =VLOOKUP(C10&D10,ListeMaterielTGV,3) -> 0.098.4001 | C10: 222675 | E10: 2 | F10: =VLOOKUP(C10&D10,ListeMaterielTGV,2) -> ATTACHE HAUBAN DE CONS. 222675
B11: 0.098.4501 | C11: 225040 | D11: 225041 | E11: 2 | F11: PIED POUR CONS 225040 R.225041
B12: 0.098.5935 | C12: 232268 | D12: 103 | E12: 1 | F12: HAUBAN ISOLE 232268 R.103
B13: 0.098.5005 | C13: 227281 | D13: 105 | E13: 1 | F13: CONSOLE ISOLEE 227281 R.105
B14: =VLOOKUP(C14&D14,ListeMaterielTGV,3) -> 2.098.1002 | C14: 203200 | D14: 211 | E14: 1 | F14: =VLOOKUP(C14&D14,ListeMaterielTGV,2) -> SUSPENS D'ANTI 203200 R.203208
B15: 2.098.0913 | C15: 204935 | D15: 103 | E15: 1 | F15: ANTIBALANCANT 204935 R.103
B16: 2.098.6132 | C16: 232870 | D16: 101 | E16: 1 | F16: SUSPENSION 1 PORTEUR 232870
B17: =VLOOKUP(C17&D17,ListeMaterielTGV,3) -> 0.098.5937 | C17: 232268 | D17: 105 | E17: 1 | F17: =VLOOKUP(C17&D17,ListeMaterielTGV,2) -> HAUBAN ISOLE 232268 R.105
B18: 0.098.5008 | C18: 227281 | D18: 108 | E18: 1 | F18: CONSOLE ISOLEE 227281 R.108
B19: =VLOOKUP(C19&D19,ListeMaterielTGV,3) -> 2.098.1002 | C19: 203200 | D19: 217 | E19: 1 | F19: =VLOOKUP(C19&D19,ListeMaterielTGV,2) -> SUSPENS D'ANTI 203200 R.203208
B20: =VLOOKUP(C20&D20,ListeMaterielTGV,3) -> 4.098.0920 | C20: 204935 | D20: 404 | E20: 1 | F20: =VLOOKUP(C20&D20,ListeMaterielTGV,2) -> ANTIBALANCANT 204935 REP.110
B21: 2.098.6132 | C21: 232870 | D21: 101 | E21: 1 | F21: SUSPENSION 1 PORTEUR 232870
A22: 18-67KBIS | B22: 0.098.4006 | C22: 222682 | D22: 105 | E22: 1 | F22: ATT 3 HAUB E=1,00 222682 R.105
A23: IST-T | B23: 0.098.4520 | C23: 225128 | D23: 105 | E23: 1 | F23: ATT 3 CONS E=1,00 225128 R.105
B24: =VLOOKUP(C24&D24,ListeMaterielTGV,3) -> 0.098.4001 | C24: 222675 | E24: 3 | F24: =VLOOKUP(C24&D24,ListeMaterielTGV,2) -> ATTACHE HAUBAN DE CONS. 222675
B25: =VLOOKUP(C25&D25,ListeMaterielTGV,3) -> 0.098.4501 | C25: 225040 | D25: 225041 | E25: 3 | F25: =VLOOKUP(C25&D25,ListeMaterielTGV,2) -> PIED POUR CONS 225040 R.225041
B26: 0.098.5937 | C26: 232268 | D26: 105 | E26: 1 | F26: HAUBAN ISOLE 232268 R.105
B27: 0.098.5008 | C27: 227281 | D27: 108 | E27: 1 | F27: CONSOLE ISOLEE 227281 R.108
B28: =VLOOKUP(C28&D28,ListeMaterielTGV,3) -> 2.098.1002 | C28: 203200 | D28: 216 | E28: 1 | F28: =VLOOKUP(C28&D28,ListeMaterielTGV,2) -> SUSPENS D'ANTI 203200 R.203208
B29: =VLOOKUP(C29&D29,ListeMaterielTGV,3) -> 2.098.0914 | C29: 204935 | D29: 104 | E29: 1 | F29: =VLOOKUP(C29&D29,ListeMaterielTGV,2) -> ANTIBALANCANT 204935 R.104
B30: 2.098.6132 | C30: 232870 | D30: 101 | E30: 1 | F30: SUSPENSION 1 PORTEUR 232870
B31: 0.098.5936 | C31: 232268 | D31: 104 | E31: 1 | F31: HAUBAN ISOLE 232268 R.104
B32: 0.098.5006 | C32: 227281 | D32: 106 | E32: 1 | F32: CONSOLE ISOLEE 227281 R.106
B33: =VLOOKUP(C33&D33,ListeMaterielTGV,3) -> 4.098.1058 | C33: 204504 | D33: 113 | E33: 1 | F33: =VLOOKUP(C33&D33,ListeMaterielTGV,2) -> SUSP. RIGIDE ANTI 204504 R.113
B34: =VLOOKUP(C34&D34,ListeMaterielTGV,3) -> 2.098.0916 | C34: 204935 | D34: 106 | E34: 1 | F34: =VLOOKUP(C34&D34,ListeMaterielTGV,2) -> ANTIBALANCANT 204935 R.106
B35: =VLOOKUP(C35&D35,ListeMaterielTGV,3) -> 2.098.6132 | C35: 232870 | D35: 101 | E35: 1 | F35: =VLOOKUP(C35&D35,ListeMaterielTGV,2) -> SUSPENSION 1 PORTEUR 232870
B36: 0.098.5935 | C36: 232268 | D36: 103 | E36: 1 | F36: HAUBAN ISOLE 232268 R.103
B37: 0.098.5006 | C37: 227281 | D37: 106 | E37: 1 | F37: CONSOLE ISOLEE 227281 R.106
B38: =VLOOKUP(C38&D38,ListeMaterielTGV,3) -> 2.098.1002 | C38: 203200 | D38: 216 | E38: 1 | F38: =VLOOKUP(C38&D38,ListeMaterielTGV,2) -> SUSPENS D'ANTI 203200 R.203208
B39: =VLOOKUP(C39&D39,ListeMaterielTGV,3) -> 2.098.0913 | C39: 204935 | D39: 103 | E39: 1 | F39: =VLOOKUP(C39&D39,ListeMaterielTGV,2) -> ANTIBALANCANT 204935 R.103
B40: 2.098.6132 | C40: 232870 | D40: 101 | E40: 1 | F40: SUSPENSION 1 PORTEUR 232870
A41: 19-31K | B41: =VLOOKUP(C41&D41,ListeMaterielTGV,3) -> 0.098.4001 | C41: 222675 | E41: 1 | F41: =VLOOKUP(C41&D41,ListeMaterielTGV,2) -> ATTACHE HAUBAN DE CONS. 222675
B42: 0.098.4501 | C42: 225040 | D42: 225041 | E42: 1 | F42: PIED POUR CONS 225040 R.225041
B43: 0.098.5935 | C43: 232268 | D43: 103 | E43: 1 | F43: HAUBAN ISOLE 232268 R.103
B44: 0.098.5005 | C44: 227281 | D44: 105 | E44: 1 | F44: CONSOLE ISOLEE 227281 R.105
B45: =VLOOKUP(C45&D45,ListeMaterielTGV,3) -> 2.098.1002 | C45: 203200 | D45: 215 | E45: 1 | F45: =VLOOKUP(C45&D45,ListeMaterielTGV,2) -> SUSPENS D'ANTI 203200 R.203208
B46: 2.098.0912 | C46: 204935 | D46: 102 | E46: 1 | F46: ANTIBALANCANT 204935 R.102
B47: 2.098.6132 | C47: 232870 | D47: 101 | E47: 1 | F47: SUSPENSION 1 PORTEUR 232870
A4564: 00

Sheet Base Materiel (hidden)
A1: SYMBOLE | B1: PLAN | C1: REPERE | D1: DESIGNATION | E1: PlanRepere | F1: Designation | G1: Symbole
A2: 0.102.2102 | D2: PLAT DE 25 X 5 MM | E2: =B2&C2 ->  | F2: =D2 -> PLAT DE 25 X 5 MM | G2: =A2 -> 0.102.2102
A3: 0.102.2156 | D3: PLAT DE 30X6 AC GALV | F3: PLAT DE 30X6 AC GALV | G3: 0.102.2156
A4: 0.133.5720 | D4: FIL ACIER INOXYDABLE DIAM.4 MM | F4: FIL ACIER INOXYDABLE DIAM.4 MM | G4: 0.133.5720
A5: 0.160.1115 | D5: VIS H,M14-100/100 | F5: VIS H,M14-100/100 | G5: 0.160.1115
A6: 0.160.1657 | D6: BOU.H,M18-55/42N A.2E.HN GALV. | F6: BOU.H,M18-55/42N A.2E.HN GALV. | G6: 0.160.1657
A7: 0.160.1671 | D7: BOU.H,M18-60/42N A-2E.HN GALV. | F7: BOU.H,M18-60/42N A-2E.HN GALV. | G7: 0.160.1671
A8: 0.160.1692 | D8: BOU.H,M18-65/42N A.2E.HN GALV. | F8: BOU.H,M18-65/42N A.2E.HN GALV. | G8: 0.160.1692
A9: 0.160.1725 | D9: BOUL HM 18-75/42N A.2E.HN GALV | F9: BOUL HM 18-75/42N A.2E.HN GALV | G9: 0.160.1725
A10: 0.160.2443 | D10: BOULON HM22-75N,2E.HN,GALV. | F10: BOULON HM22-75N,2E.HN,GALV. | G10: 0.160.2443
A11: 0.160.3750 | D11: BOULON HM 12-60/30T INOX | F11: BOULON HM 12-60/30T INOX | G11: 0.160.3750
A12: 0.160.4008 | D12: BOULON HM8-120/35T,2HT,AC ZING | F12: BOULON HM8-120/35T,2HT,AC ZING | G12: 0.160.4008
A13: 0.160.4019 | D13: BOULON HM8-140/35T,2HT,AC ZING | F13: BOULON HM8-140/35T,2HT,AC ZING | G13: 0.160.4019
A14: 0.160.4071 | D14: BOULON HM8-25/25T,2HT,AC ZING | F14: BOULON HM8-25/25T,2HT,AC ZING | G14: 0.160.4071
A15: 0.160.4083 | D15: BOULON HM8-30T.E.HT.ZING. | F15: BOULON HM8-30T.E.HT.ZING. | G15: 0.160.4083
A16: 0.160.4092 | D16: BOULON HM8-35/22T.1HT.AC ZING | F16: BOULON HM8-35/22T.1HT.AC ZING | G16: 0.160.4092
A17: 0.160.4140 | D17: BOULON HM8-55.2 ECROUS H | F17: BOULON HM8-55.2 ECROUS H | G17: 0.160.4140
A18: 0.160.4169 | D18: BOULON H,M8-70, ECROU H | F18: BOULON H,M8-70, ECROU H | G18: 0.160.4169
A19: 0.160.4200 | D19: BOULON HM10-20T Z15 | F19: BOULON HM10-20T Z15 | G19: 0.160.4200
A20: 0.160.4204 | D20: BOULON HM10-25T,E.HT ZINGUE | F20: BOULON HM10-25T,E.HT ZINGUE | G20: 0.160.4204
A21: 0.160.4223 | D21: BOULON HM10-30/30T,E.HT,ZINGUE | F21: BOULON HM10-30/30T,E.HT,ZINGUE | G21: 0.160.4223
A22: 0.160.4229 | D22: BOULON H,M10-35T,2E.HT | F22: BOULON H,M10-35T,2E.HT | G22: 0.160.4229
A23: 0.160.4250 | D23: BOUL.H,M10-40/26T AC.INO.EC.HT | F23: BOUL.H,M10-40/26T AC.INO.EC.HT | G23: 0.160.4250
A24: 0.160.4253 | D24: BOULON HM10-40/26T,HT,ZINGUE,P | F24: BOULON HM10-40/26T,HT,ZINGUE,P | G24: 0.160.4253
A25: 0.160.4272 | D25: BOUL.H,M10-45/26T AC.INO.2E.HT | F25: BOUL.H,M10-45/26T AC.INO.2E.HT | G25: 0.160.4272
A26: 0.160.4286 | D26: BOULON HM10-50/26T,2HT,AC INOX | F26: BOULON HM10-50/26T,2HT,AC INOX | G26: 0.160.4286
A27: 0.160.4292 | D27: BOULON H,M10-55 T INOX 2E | F27: BOULON H,M10-55 T INOX 2E | G27: 0.160.4292
A28: 0.160.4300 | D28: BOULON HM10-60/26T,1HT,ZING,P | F28: BOULON HM10-60/26T,1HT,ZING,P | G28: 0.160.4300
A29: 0.160.4303 | D29: BOU.H,M10-65/26T A.INO.2ECR.HT | F29: BOU.H,M10-65/26T A.INO.2ECR.HT | G29: 0.160.4303
A30: 0.160.4332 | D30: BOULON HM10-100/26T,2HT,ZINGUE | F30: BOULON HM10-100/26T,2HT,ZINGUE | G30: 0.160.4332
A31: 0.160.4345 | D31: BOULON HM10_120/26 | F31: BOULON HM10_120/26 | G31: 0.160.4345
A32: 0.160.4369 | D32: BOULON HM12-30/30T,1HT,AC ZING | F32: BOULON HM12-30/30T,1HT,AC ZING | G32: 0.160.4369
A33: 0.160.4375 | D33: BOUL.H,M12-30/30T AC.INO.2E.HT | F33: BOUL.H,M12-30/30T AC.INO.2E.HT | G33: 0.160.4375
A34: 0.160.4377 | D34: BOULON HM12-35T,E.HT ZINGUE | F34: BOULON HM12-35T,E.HT ZINGUE | G34: 0.160.4377
A35: 0.160.4380 | D35: BOULON HM12-35/30T,2HT,AC ZING | F35: BOULON HM12-35/30T,2HT,AC ZING | G35: 0.160.4380
A36: 0.160.4381 | D36: BOUL.HM12-35/30T AC.INO.2E.HT | F36: BOUL.HM12-35/30T AC.INO.2E.HT | G36: 0.160.4381
A37: 0.160.4392 | D37: BOULON HM12-40T,E.HT ZINGUE | F37: BOULON HM12-40T,E.HT ZINGUE | G37: 0.160.4392
A38: 0.160.4398 | D38: BOULON H,M12-40,2 ECROUS H | F38: BOULON H,M12-40,2 ECROUS H | G38: 0.160.4398
A39: 0.160.4400 | D39: BOULON H,M12 10 T,2 ECROU HT | F39: BOULON H,M12 10 T,2 ECROU HT | G39: 0.160.4400
A40: 0.160.4415 | D40: BOULON HM12-45T,E.HT ZINGUE | F40: BOULON HM12-45T,E.HT ZINGUE | G40: 0.160.4415
A41: 0.160.4423 | D41: BOUL.H,M12-45/30T AC.INO.2E.HT | F41: BOUL.H,M12-45/30T AC.INO.2E.HT | G41: 0.160.4423
A42: 0.160.4428 | D42: BOULON H,M12-50T,2E.HT | F42: BOULON H,M12-50T,2E.HT | G42: 0.160.4428
A43: 0.160.4429 | D43: BOULON HM12-50T,2E.HT,ZINGUE | F43: BOULON HM12-50T,2E.HT,ZINGUE | G43: 0.160.4429
A44: 0.160.4444 | D44: BOULON HM12-55/30T,2HT,AC ZING | F44: BOULON HM12-55/30T,2HT,AC ZING | G44: 0.160.4444
A45: 0.160.4447 | D45: BOULON HM12-60/30T,2HT,AC INOX | F45: BOULON HM12-60/30T,2HT,AC INOX | G45: 0.160.4447
A46: 0.160.4477 | D46: BOUL.H,M12-75/30T AC.INO.2E.HT | F46: BOUL.H,M12-75/30T AC.INO.2E.HT | G46: 0.160.4477
A47: 0.160.4479 | D47: BOULON HM12-80/30T,2HT,AC ZING | F47: BOULON HM12-80/30T,2HT,AC ZING | G47: 0.160.4479
A48: 0.160.4498 | D48: BOULON HM12-110T,2E.HT,ZINGUE | F48: BOULON HM12-110T,2E.HT,ZINGUE | G48: 0.160.4498
A49: 0.160.4503 | D49: BOULON HM12-120/30T,2HT,ZINGUE | F49: BOULON HM12-120/30T,2HT,ZINGUE | G49: 0.160.4503
A50: 0.160.4531 | D50: BOULON HM12-160/36T,2HT,ZINGUE | F50: BOULON HM12-160/36T,2HT,ZINGUE | G50: 0.160.4531
A51: 0.160.4541 | D51: BOULON HM12-200/36T,2HT,ZINGUE | F51: BOULON HM12-200/36T,2HT,ZINGUE | G51: 0.160.4541
A52: 0.160.4559 | D52: BOULON HM14-35/35T,2HT,AC GALV | F52: BOULON HM14-35/35T,2HT,AC GALV | G52: 0.160.4559
A53: 0.160.4573 | D53: BOULON H,M14 40 T,2E,GALV. | F53: BOULON H,M14 40 T,2E,GALV. | G53: 0.160.4573
A54: 0.160.4583 | D54: BOULON HM14-45T,E.HT GALV | F54: BOULON HM14-45T,E.HT GALV | G54: 0.160.4583
A55: 0.160.4584 | D55: BOULON HM14-45T,2E.HT,GALV. | F55: BOULON HM14-45T,2E.HT,GALV. | G55: 0.160.4584
A56: 0.160.4599 | D56: BOULON HM14-50/34T,2HT,AC GALV | F56: BOULON HM14-50/34T,2HT,AC GALV | G56: 0.160.4599
A57: 0.160.4615 | D57: BOULON HM14-55T,2E.HT,GALV. | F57: BOULON HM14-55T,2E.HT,GALV. | G57: 0.160.4615
A58: 0.160.4634 | D58: BOULON HM14-60T,2E.HT,GALV. | F58: BOULON HM14-60T,2E.HT,GALV. | G58: 0.160.4634
A59: 0.160.4640 | D59: BOULON HM14-65T,2E.HT,GALV. | F59: BOULON HM14-65T,2E.HT,GALV. | G59: 0.160.4640
A60: 0.160.4645 | D60: BOULON H,M14-70,EH,PERCE,GALV. | F60: BOULON H,M14-70,EH,PERCE,GALV. | G60: 0.160.4645
A61: 0.160.4651 | D61: BOULON HM14-75T,2E.HT,GALV. | F61: BOULON HM14-75T,2E.HT,GALV. | G61: 0.160.4651
A62: 0.160.4732 | D62: BOULON H,M14-200,2E.GALVA | F62: BOULON H,M14-200,2E.GALVA | G62: 0.160.4732
A63: 0.160.4756 | D63: BOULON H,M16-35 ECROU H GALVA | F63: BOULON H,M16-35 ECROU H GALVA | G63: 0.160.4756
A64: 0.160.4773 | D64: BOULON HM16-40/40T,2E.HT,GALV. | F64: BOULON HM16-40/40T,2E.HT,GALV. | G64: 0.160.4773
A65: 0.160.4807 | D65: BOULON H,M16-50 T,2E.HT, GALV. | F65: BOULON H,M16-50 T,2E.HT, GALV. | G65: 0.160.4807
A66: 0.160.4826 | D66: BOULON H,M16-55 T,2E.HT, GALV. | E66: =B66&C66 ->  | F66: =D66 -> BOULON H,M16-55 T,2E.HT, GALV. | G66: =A66 -> 0.160.4826
A67: 0.160.4844 | D67: BOULON HM16-60T,2E.HT,GALV. | F67: BOULON HM16-60T,2E.HT,GALV. | G67: 0.160.4844
A68: 0.160.4852 | D68: BOULON HM16-65T,2E.HT,GALV. | F68: BOULON HM16-65T,2E.HT,GALV. | G68: 0.160.4852
A69: 0.161.4733 | D69: BOULON J,M8-30,ECROU H | F69: BOULON J,M8-30,ECROU H | G69: 0.161.4733
A70: 0.161.4741 | D70: BOULON JAPY M8-40/33 ECROU H | F70: BOULON JAPY M8-40/33 ECROU H | G70: 0.161.4741
A71: 0.163.0296 | D71: Vis H, M6-40/40 | F71: Vis H, M6-40/40 | G71: 0.163.0296
A72: 0.163.0457 | D72: VIS H,M8 x 30 | F72: VIS H,M8 x 30 | G72: 0.163.0457
A73: 0.163.0465 | D73: VIS H,M8-35/35 | F73: VIS H,M8-35/35 | G73: 0.163.0465
A74: 0.163.0469 | D74: VIS H,M8 55/22 | F74: VIS H,M8 55/22 | G74: 0.163.0469
A75: 0.163.0470 | D75: VIS H, M8 70/22 | F75: VIS H, M8 70/22 | G75: 0.163.0470
A76: 0.163.0494 | D76: VIS H,M 8-50/22 | F76: VIS H,M 8-50/22 | G76: 0.163.0494
A77: 0.163.0686 | D77: VIS H,M10-45/26 | F77: VIS H,M10-45/26 | G77: 0.163.0686
A78: 0.163.0702 | D78: VIS H,M10 x 55 | F78: VIS H,M10 x 55 | G78: 0.163.0702
A79: 0.163.0707 | D79: VIS H,M 10 x 60 | F79: VIS H,M 10 x 60 | G79: 0.163.0707
A80: 0.163.0715 | D80: VIS H,M10 x 65 | F80: VIS H,M10 x 65 | G80: 0.163.0715
A81: 0.163.0723 | D81: VIS H,M10 x 70 | F81: VIS H,M10 x 70 | G81: 0.163.0723
A82: 0.163.0730 | D82: VIS H,M 12 x 80 | F82: VIS H,M 12 x 80 | G82: 0.163.0730
A83: 0.163.0741 | D83: VIS H,M 10 x 90 | F83: VIS H,M 10 x 90 | G83: 0.163.0741
A84: 0.163.0792 | D84: VIS H,M12 x 180 | F84: VIS H,M12 x 180 | G84: 0.163.0792
A85: 0.163.0795 | D85: VIS M12 x 220 | F85: VIS M12 x 220 | G85: 0.163.0795
A86: 0.163.0890 | D86: VIS H,M12-40 | F86: VIS H,M12-40 | G86: 0.163.0890
A87: 0.163.0899 | D87: VIS H,M12 x 45 | F87: VIS H,M12 x 45 | G87: 0.163.0899
A88: 0.163.0902 | D88: VIS H,M12 x 50 | F88: VIS H,M12 x 50 | G88: 0.163.0902
A89: 0.163.0908 | D89: VIS H,M14.40/40 | F89: VIS H,M14.40/40 | G89: 0.163.0908
A90: 0.163.0909 | D90: VIS H,M 14-90/34 | F90: VIS H,M 14-90/34 | G90: 0.163.0909
A91: 0.163.0937 | D91: VIS H,M12 x 70 | F91: VIS H,M12 x 70 | G91: 0.163.0937
A92: 0.163.0956 | D92: VIS H,M12 x 90 | F92: VIS H,M12 x 90 | G92: 0.163.0956
A93: 0.163.0967 | D93: VIS H,M12 x 100 | F93: VIS H,M12 x 100 | G93: 0.163.0967
A94: 0.163.0971 | D94: VIS H,M12-130/30 | F94: VIS H,M12-130/30 | G94: 0.163.0971
A95: 0.163.1088 | D95: VIS H,M14 x 55 | F95: VIS H,M14 x 55 | G95: 0.163.1088
A96: 0.163.1101 | D96: VIS H,M 14 x 70 | F96: VIS H,M 14 x 70 | G96: 0.163.1101
A97: 0.163.1114 | D97: VIS H,M14 x 100 | F97: VIS H,M14 x 100 | G97: 0.163.1114
A98: 0.163.1115 | D98: VIS H,M14-80/80 | F98: VIS H,M14-80/80 | G98: 0.163.1115
A99: 0.163.1198 | D99: VIS H,M16-65/38 | F99: VIS H,M16-65/38 | G99: 0.163.1198
A100: 0.163.1251 | D100: VIS H,M16-200 | F100: VIS H,M16-200 | G100: 0.163.1251
A101: 0.163.1810 | D101: VIS HEXAGONALE ACIER INOX HM8-25/25 | F101: VIS HEXAGONALE ACIER INOX HM8-25/25 | G101: 0.163.1810
A102: 0.163.1899 | D102: VIS H,M16-50 | F102: VIS H,M16-50 | G102: 0.163.1899
A103: 0.167.0425 | D103: ECROU HM8T | F103: ECROU HM8T | G103: 0.167.0425
A104: 0.167.0435 | D104: ECROU H,M10 | F104: ECROU H,M10 | G104: 0.167.0435
A105: 0.167.0440 | D105: ECROU H,M12 | F105: ECROU H,M12 | G105: 0.167.0440
A106: 0.167.0461 | D106: ECROU H,M14 | F106: ECROU H,M14 | G106: 0.167.0461
A107: 0.167.0485 | D107: ECROU H,M24T ACIER ZINGUE | F107: ECROU H,M24T ACIER ZINGUE | G107: 0.167.0485
A108: 0.167.0717 | D108: ECROU H BAS M14T | F108: ECROU H BAS M14T | G108: 0.167.0717
A109: 0.167.0860 | D109: ECROU HM,M8T ACIER INOX | F109: ECROU HM,M8T ACIER INOX | G109: 0.167.0860
A110: 0.167.0874 | D110: ECROU HM,M10 INOX | F110: ECROU HM,M10 INOX | G110: 0.167.0874
A111: 0.167.0875 | D111: ECROU H BAS,M10T ACIER INOX | F111: ECROU H BAS,M10T ACIER INOX | G111: 0.167.0875
A112: 0.167.0897 | D112: ECROU H BAS,M16T ACIER INOX | F112: ECROU H BAS,M16T ACIER INOX | G112: 0.167.0897
A113: 0.167.0907 | D113: ECROU HM 20T | F113: ECROU HM 20T | G113: 0.167.0907
A114: 0.167.1287 | D114: ECROU H,FR M10 | F114: ECROU H,FR M10 | G114: 0.167.1287
A115: 0.167.3578 | D115: ECROU H,M8 ACIER INOX | F115: ECROU H,M8 ACIER INOX | G115: 0.167.3578
A116: 0.167.3743 | D116: ECROU HM,16T AC.INO FIL.ISO | F116: ECROU HM,16T AC.INO FIL.ISO | G116: 0.167.3743
A117: 0.167.9100 | D117: ECROU H FR, M8 | F117: ECROU H FR, M8 | G117: 0.167.9100
A118: 0.167.9101 | D118: ECROU H FR, M14 | F118: ECROU H FR, M14 | G118: 0.167.9101
A119: 0.168.0152 | D119: RONDELLE M12 INOX | F119: RONDELLE M12 INOX | G119: 0.168.0152
A120: 0.168.0300 | D120: RONDELLE M16N GALV | F120: RONDELLE M16N GALV | G120: 0.168.0300
A121: 0.168.0312 | D121: RONDELLE M-10N TOLE AC. GALVA | F121: RONDELLE M-10N TOLE AC. GALVA | G121: 0.168.0312
A122: 0.168.0318 | D122: RONDELLE M-12N TOLE AC. GALVA. | F122: RONDELLE M-12N TOLE AC. GALVA. | G122: 0.168.0318
A123: 0.168.0468 | D123: RONDELLE L10 | F123: RONDELLE L10 | G123: 0.168.0468
A124: 0.168.0550 | D124: RONDELLE PLATE AC.GALVA.LL 12N | F124: RONDELLE PLATE AC.GALVA.LL 12N | G124: 0.168.0550
A125: 0.168.8188 | D125: CALE OBLIQ.BRUT ACIER D=14 U G | F125: CALE OBLIQ.BRUT ACIER D=14 U G | G125: 0.168.8188
A126: 0.168.8197 | D126: CALE OBLIQUE PR PROFILE U 18 | F126: CALE OBLIQUE PR PROFILE U 18 | G126: 0.168.8197
A127: 0.169.7187 | D127: GOUPILLE V2-20 ACIER INOX | F127: GOUPILLE V2-20 ACIER INOX | G127: 0.169.7187
A128: 0.169.7462 | D128: GOUPILLE V 6,3-56 ACIER INOX | F128: GOUPILLE V 6,3-56 ACIER INOX | G128: 0.169.7462
A129: 0.169.8596 | D129: GOUPILLE ELAST. EP. 8-80 | F129: GOUPILLE ELAST. EP. 8-80 | G129: 0.169.8596
A130: 0.170.0370 | D130: VIS A BOIS R 6x40 | E130: =B130&C130 ->  | F130: =D130 -> VIS A BOIS R 6x40 | G130: =A130 -> 0.170.0370
A131: 0.170.0910 | D131: VIS A BOIS R 6X40 LAITON | F131: VIS A BOIS R 6X40 LAITON | G131: 0.170.0910
A132: 0.173.1536 | D132: RIVET R6-40 | F132: RIVET R6-40 | G132: 0.173.1536
A133: 0.173.1624 | D133: RIVET F/90 6.20 | F133: RIVET F/90 6.20 | G133: 0.173.1624
A134: 0.173.3492 | D134: RIVET F/90-8-50 | F134: RIVET F/90-8-50 | G134: 0.173.3492
A135: 0.173.8660 | D135: RIVET TUBULAIRE 2 PIECES 4X10 | F135: RIVET TUBULAIRE 2 PIECES 4X10 | G135: 0.173.8660
A136: 0.174.7656 | D136: AXE D'ARTICULATION TETE 10-30 | F136: AXE D'ARTICULATION TETE 10-30 | G136: 0.174.7656
A137: 0.175.9000 | D137: AXE D'ARTICULATION TETE 8-60 | F137: AXE D'ARTICULATION TETE 8-60 | G137: 0.175.9000
A138: 0.189.4723 | D138: RONDELLE A DENTS DEC M16 ACIER | F138: RONDELLE A DENTS DEC M16 ACIER | G138: 0.189.4723
A139: 0.189.4730 | D139: RONDELLE A DENTS DEC M8 ACIER | F139: RONDELLE A DENTS DEC M8 ACIER | G139: 0.189.4730
A140: 0.189.4737 | D140: RONDELLE A DENTS DEC M12 ACIER | F140: RONDELLE A DENTS DEC M12 ACIER | G140: 0.189.4737
A141: 0.189.4738 | D141: RONDELLE A DENTS DEC M14 ACIER | F141: RONDELLE A DENTS DEC M14 ACIER | G141: 0.189.4738
A142: 0.191.0240 | D142: CADENAS AUTOMATIQUE NUMERO 4 | F142: CADENAS AUTOMATIQUE NUMERO 4 | G142: 0.191.0240
A143: 0.193.2935 | D143: COLLIER DE SERRAGE 9/20-35 | F143: COLLIER DE SERRAGE 9/20-35 | G143: 0.193.2935
A144: 0.193.3180 | D144: COLLIER DE SERRAGE 25-40 | F144: COLLIER DE SERRAGE 25-40 | G144: 0.193.3180
A145: 0.193.3189 | D145: COLLIER DE SERRAGE | F145: COLLIER DE SERRAGE | G145: 0.193.3189
A146: 0.194.1149 | D146: PLAQUE ATT. AUX CATENAIRES | F146: PLAQUE ATT. AUX CATENAIRES | G146: 0.194.1149
A147: 0.197.0747 | D147: METAL DEPLOYE 1,5M X 1,85M | F147: METAL DEPLOYE 1,5M X 1,85M | G147: 0.197.0747
A148: 0.247.3660 | D148: CORDE D4 L=2,60m ST395 | F148: CORDE D4 L=2,60m ST395 | G148: 0.247.3660
A149: 0.258.9320 | D149: RONDELLE M24 | F149: RONDELLE M24 | G149: 0.258.9320
A150: 0.340.1029 | D150: PLAQUETTE ANCRAGE REF:1002996 | F150: PLAQUETTE ANCRAGE REF:1002996 | G150: 0.340.1029
A151: 0.368.0054 | D151: CABLE DE 3,78 ACIER GALVA | F151: CABLE DE 3,78 ACIER GALVA | G151: 0.368.0054
A152: 0.368.0593 | D152: CABLE DIAMETRE 11 GALVANISE | F152: CABLE DIAMETRE 11 GALVANISE | G152: 0.368.0593
A153: 0.368.0790 | D153: CABLE DIAMETRE 13,2 GALVANISE | F153: CABLE DIAMETRE 13,2 GALVANISE | G153: 0.368.0790
A154: 0.368.2400 | D154: CABLE ACIER INOXYDABLE 6,52MM2 | F154: CABLE ACIER INOXYDABLE 6,52MM2 | G154: 0.368.2400
A155: 0.368.2405 | D155: CABLE ACIER INOXYDABLE DE 5 MM | F155: CABLE ACIER INOXYDABLE DE 5 MM | G155: 0.368.2405
A156: 0.368.2410 | D156: CABL.INOX 37,92MM2 D8,75 8TOR. | F156: CABL.INOX 37,92MM2 D8,75 8TOR. | G156: 0.368.2410
A157: 0.368.2411 | D157: CABL.INOX D8,75mm L=ALADEMANDE | F157: CABL.INOX D8,75mm L=ALADEMANDE | G157: 0.368.2411
A158: 0.368.2651 | D158: CABLE ACIER INOX S = 51,5 MM2 | F158: CABLE ACIER INOX S = 51,5 MM2 | G158: 0.368.2651
A159: 0.368.2660 | D159: CABLE ACIER INOX.13,85 LIG.CAT | F159: CABLE ACIER INOX.13,85 LIG.CAT | G159: 0.368.2660
A160: 0.368.2662 | D160: CABLE ACIER INOX.84,80 LIG.CAT | F160: CABLE ACIER INOX.84,80 LIG.CAT | G160: 0.368.2662
A161: 0.368.2669 | D161: CABLE ACIER INOX S = 85 MM2 | F161: CABLE ACIER INOX S = 85 MM2 | G161: 0.368.2669
A162: 0.368.2670 | D162: CABLE ACIER INOX S = 93 MM2 | F162: CABLE ACIER INOX S = 93 MM2 | G162: 0.368.2670
A163: 0.368.2671 | D163: CABLE AC. GALV. GRAISSE 48 MM2 | F163: CABLE AC. GALV. GRAISSE 48 MM2 | G163: 0.368.2671
A164: 0.368.2673 | D164: TORON DE 9,5 | F164: TORON DE 9,5 | G164: 0.368.2673
A165: 0.368.2675 | D165: TORON DE 11,5 | F165: TORON DE 11,5 | G165: 0.368.2675
A166: 0.368.2680 | D166: TORON DE 13 | F166: TORON DE 13 | G166: 0.368.2680
A167: 0.368.2681 | D167: CABLE AC. GALV.GRAISSE 109 MM2 | F167: CABLE AC. GALV.GRAISSE 109 MM2 | G167: 0.368.2681
A168: 0.368.2683 | D168: CABLE AC. GALV.GRAISSE 134 MM2 | F168: CABLE AC. GALV.GRAISSE 134 MM2 | G168: 0.368.2683
A169: 0.368.2687 | D169: CABLE TORONNE AC.GALVAN. 56MM2 | F169: CABLE TORONNE AC.GALVAN. 56MM2 | G169: 0.368.2687
A170: 0.368.2689 | D170: CABLE TORONNE AC.GALV. 105 MM2 | F170: CABLE TORONNE AC.GALV. 105 MM2 | G170: 0.368.2689
A171: 0.368.2692 | D171: CABLE AC. GALVA 151MM2/D18 | F171: CABLE AC. GALVA 151MM2/D18 | G171: 0.368.2692
A172: 0.393.1145 | D172: MATRICE HEXAGONALE 12.DE.6,1 | F172: MATRICE HEXAGONALE 12.DE.6,1 | G172: 0.393.1145
A173: 0.840.0110 | D173: FIL ROND EN CUIVRE DUR D. 3MM | F173: FIL ROND EN CUIVRE DUR D. 3MM | G173: 0.840.0110
A174: 0.840.0285 | D174: FIL A LIGATURE D=1MN(LN1X1) | F174: FIL A LIGATURE D=1MN(LN1X1) | G174: 0.840.0285
A175: 0.840.1760 | D175: CABLE CUIVRE RECUIT DE 26 MM2 | F175: CABLE CUIVRE RECUIT DE 26 MM2 | G175: 0.840.1760
A176: 0.840.1785 | D176: CABLE NU CR,29,3MM2,19F.1,4MM | F176: CABLE NU CR,29,3MM2,19F.1,4MM | G176: 0.840.1785
A177: 0.840.1814 | D177: CABLE NU CR 74,9MM2 (19X2,24) | F177: CABLE NU CR 74,9MM2 (19X2,24) | G177: 0.840.1814
A178: 0.840.1816 | D178: CABLE CUIVRE RECUIT DE 75 MM2 | F178: CABLE CUIVRE RECUIT DE 75 MM2 | G178: 0.840.1816
A179: 0.840.1855 | D179: CABLE CUIVRE RECUIT DE 147 MM2 | F179: CABLE CUIVRE RECUIT DE 147 MM2 | G179: 0.840.1855
A180: 0.840.1856 | D180: CABLE CUIVRE RECUIT DE 164 MM2 | F180: CABLE CUIVRE RECUIT DE 164 MM2 | G180: 0.840.1856
A181: 0.840.2450 | D181: TRESSE CUIVRE 28 X 4,5 MM | F181: TRESSE CUIVRE 28 X 4,5 MM | G181: 0.840.2450
A182: 0.840.8020 | D182: FIL PLOMP DIAMETRE 2MM | F182: FIL PLOMP DIAMETRE 2MM | G182: 0.840.8020
A183: 0.841.0350 | D183: FIL CU.REC.DI.7,1MM.S.39,59MM2 | F183: FIL CU.REC.DI.7,1MM.S.39,59MM2 | G183: 0.841.0350
A184: 0.841.1565 | D184: CABLE CUIVRE ECROUI DE 29,3MM2 | F184: CABLE CUIVRE ECROUI DE 29,3MM2 | G184: 0.841.1565
A185: 0.841.1568 | D185: CABL.CU.DUR SECT.34,4MM2 7X2,5 | F185: CABL.CU.DUR SECT.34,4MM2 7X2,5 | G185: 0.841.1568
A186: 0.841.1580 | D186: CABLE NU CU DUR D=10 MM | F186: CABLE NU CU DUR D=10 MM | G186: 0.841.1580
A187: 0.841.1598 | D187: CABLE NU CU DUR 100,8MM2-13MM | F187: CABLE NU CU DUR 100,8MM2-13MM | G187: 0.841.1598
A188: 0.841.1605 | D188: CABLE CU DUR 145,8MM2 37X2,24 | F188: CABLE CU DUR 145,8MM2 37X2,24 | G188: 0.841.1605
A189: 0.841.1606 | D189: CABLE NU CUIV.DUR(CE 148,1MM2) | F189: CABLE NU CUIV.DUR(CE 148,1MM2) | G189: 0.841.1606
A190: 0.841.1614 | D190: CABLE NU CUIVRE DUR 198,5 MM2 | F190: CABLE NU CUIVRE DUR 198,5 MM2 | G190: 0.841.1614
A191: 0.841.1620 | D191: CABL.CU.DUR SECT.261,5MM2 37X3 | F191: CABL.CU.DUR SECT.261,5MM2 37X3 | G191: 0.841.1620
A192: 0.841.1640 | D192: CABLE NU CUIVRE DUR DE 288 MM2 | F192: CABLE NU CUIVRE DUR DE 288 MM2 | G192: 0.841.1640
A193: 0.841.1650 | D193: CABL.NU.CU DUR 300MM2-22,5MM | F193: CABL.NU.CU DUR 300MM2-22,5MM | G193: 0.841.1650
A194: 0.841.1793 | D194: CABLE CUIVRE RECUIT DE 48,3MM2 | E194: =B194&C194 ->  | F194: =D194 -> CABLE CUIVRE RECUIT DE 48,3MM2 | G194: =A194 -> 0.841.1793
A195: 0.841.1835 | D195: CABL.CU.RECU.S.104,5MM2 19X7X1 | F195: CABL.CU.RECU.S.104,5MM2 19X7X1 | G195: 0.841.1835
A196: 0.841.2960 | D196: BANDE DE 20X0,6MM CU.ANGL.VIFS | F196: BANDE DE 20X0,6MM CU.ANGL.VIFS | G196: 0.841.2960
A197: 0.841.3250 | D197: TRESSE CU ETAME 25mm2 D=8mm | F197: TRESSE CU ETAME 25mm2 D=8mm | G197: 0.841.3250
A198: 0.841.3845 | D198: FIL ROND CUIVRE ECROUI D = 5MM | F198: FIL ROND CUIVRE ECROUI D = 5MM | G198: 0.841.3845
A199: 0.841.3854 | D199: FIL ROND CUIVRE ECROUI D = 7MM | F199: FIL ROND CUIVRE ECROUI D = 7MM | G199: 0.841.3854
A200: 0.841.3862 | D200: FIL ROND CU ECROUI D = 11,5 MM | F200: FIL ROND CU ECROUI D = 11,5 MM | G200: 0.841.3862
... 9906 more rows
